{"text_format":"1","workbook":"xlsx","n_sheets":4,"sheets":["menu's","matrixen","Algemene verkoopsvoorwaarden","Reservatievoorstel"],"not_rendered":{"charts":0,"images":0,"macros":1,"external_links":0,"defined_names":3,"comments":0,"pivot_tables":0},"unopened":[],"bounds":{"document_bytes":16777216,"sheet_cells":100000,"rows_first":2000,"rows_last":500,"rows_between":2000,"halvings":0,"cell_chars":16384,"cell_head_chars":4096},"cells_cut":0,"cells_raw":0,"read":"whole","date_system":"1900"}

{"sheet":"menu's","index":0,"n_rows":381,"n_cols":27,"rows_kept":381,"cut":false,"hidden":false,"merged":[[123,11,123,15],[51,5,52,8],[124,11,124,22]]}
[null,"Deze info is van: Feestzaal Katelijnenhof, Heirweg 172, 8800 Roeselare. Contacteer de zaakvoerder: 0475/618058 - info@katelijnenhof.be - web: www.katelijnenhof.be met foto's en volledige prijslijst."]
[]
[null,{"$f":"\"Rekenmodule menu's. De prijzen van de recepties in deze module gelden voor alle personen waarvan de receptie gevolgd wordt door een maaltijd. Geldig tot \" & DAY(matrixen!B1) & \" - \" & MONTH(matrixen!B1) & \" - \" & YEAR(matrixen!B1)","v":"Rekenmodule menu's. De prijzen van de recepties in deze module gelden voor alle personen waarvan de receptie gevolgd wordt door een maaltijd. Geldig tot 23 - 2 - 2018"}]
[]
[null,null,null,null,null,"kinderen",null,"kinderen",null,"kinderen"]
[null,null,null,{"$f":"IF(TODAY()>AA11,\"Deze module is niet meer geldig.\",\"Deze prijzen zijn pas geldig van zodra u een hoofdschotel koos.\")","v":"Deze prijzen zijn pas geldig van zodra u een hoofdschotel koos."},null," 0 t.e.m. 2 j. 11 maand",null,"3 j. t.e.m. 5 j. 11 maand",null,"6 j, t.e.m. 11 jr. 11 maand"]
[null,"Totaal per volwassene:",null,{"$f":"IF(TODAY()>AA11,1/0,SUM(D10:D1023))","v":0},null,"0,00",null,{"$f":"D7/3","v":0},null,{"$f":"D7/2","v":0}]
[null,null,null,null,null,"U kan ook voor de kinderen een kindermenu nemen ( zie een andere rekenmodule)"]
[]
[null,"MAAK STEEDS UW KEUZE in de gele vakken: (scroll naar beneden om meer gegevens in te vullen) Hierboven kunt u uw prijs volgen.",null,null,null,null,null,null,"U vindt verder een overzicht van uw selectie"]
[null,"(klik op de gele balk, vervolgens op het pijltje rechts en scroll ev. naar beneden)",null,"prijs pp",null,"Beknopte info",null,"Gedetailleerde info",null,null,null,null,null,null,null,null,null,null,null,null,null,null,null,null,null,null,{"$f":"matrixen!B1","v":"2018-02-23"}]
[]
[null,"Maak in dit vak uw keuze voor het aperitief",null,{"$f":"VLOOKUP(B13,matrixen!B11:I19,8,FALSE)","v":0},null,{"$f":"HLOOKUP($B$13,matrixen!$K$14:$S$18,2,FALSE)","v":0},null,{"$f":"HLOOKUP($B$13,matrixen!$T$14:$AB$28,2,FALSE)","v":0},null,null,null,null,null,null,null,null,null,null,null,null,null,null,null,null,null,null,{"$f":"matrixen!B11","v":"Maak in dit vak uw keuze voor het aperitief"}]
[null,"Maak in dit vak uw keuze voor het aperitief",null,null,null,{"$f":"HLOOKUP($B$13,matrixen!$K$14:$S$18,3,FALSE)","v":0},null,{"$f":"HLOOKUP($B$13,matrixen!$T$14:$AB$28,3,FALSE)","v":0},null,null,null,null,null,null,null,null,null,null,null,null,null,null,null,null,null,null,{"$f":"matrixen!B12","v":"1 aperitief per persoon"}]
[null,null,null,null,null,{"$f":"HLOOKUP($B$13,matrixen!$K$14:$S$18,4,FALSE)","v":0},null,{"$f":"HLOOKUP($B$13,matrixen!$T$14:$AB$28,4,FALSE)","v":0},null,null,null,null,null,null,null,null,null,null,null,null,null,null,null,null,null,null,{"$f":"matrixen!B13","v":"2 aperitieven per persoon"}]
[null,null,null,null,null,{"$f":"HLOOKUP($B$13,matrixen!$K$14:$S$19,5,FALSE)","v":0},null,{"$f":"HLOOKUP($B$13,matrixen!$T$14:$AB$28,5,FALSE)","v":0},null,null,null,null,null,null,null,null,null,null,null,null,null,null,null,null,null,null,{"$f":"matrixen!B14","v":"Receptie F"}]
[null,null,null,null,null,null,null,{"$f":"HLOOKUP($B$13,matrixen!$T$14:$AB$28,6,FALSE)","v":0},null,null,null,null,null,null,null,null,null,null,null,null,null,null,null,null,null,null,{"$f":"matrixen!B15","v":"Receptie E"}]
[null,null,null,null,null,null,null,{"$f":"HLOOKUP($B$13,matrixen!$T$14:$AB$28,7,FALSE)","v":0},null,null,null,null,null,null,null,null,null,null,null,null,null,null,null,null,null,null,{"$f":"matrixen!B16","v":"Receptie D"}]
[null,"Indien een genodigde een extra aperitief bestelt of een aperitief wenst die niet in de prijs begrepen is dan:",null,null,null,null,null,{"$f":"HLOOKUP($B$13,matrixen!$T$14:$AB$28,8,FALSE)","v":0},null,null,null,null,null,null,null,null,null,null,null,null,null,null,null,null,null,null,{"$f":"matrixen!B17","v":"Receptie C"}]
[null,"De gast die een extra aperitief bestelt betaalt deze zelf",null,null,null,"De gast die een extra aperitief bestelt betaalt deze zelf",null,{"$f":"HLOOKUP($B$13,matrixen!$T$14:$AB$28,9,FALSE)","v":0},null,null,null,null,null,null,null,null,null,null,null,null,null,null,null,null,null,null,{"$f":"matrixen!B18","v":"Receptie B"}]
[null,"De gast die een extra aperitief bestelt betaalt deze zelf",null,null,null,"Alle extra aperitief komt op de algemene rekening.",null,{"$f":"HLOOKUP($B$13,matrixen!$T$14:$AB$28,10,FALSE)","v":0},null,null,null,null,null,null,null,null,null,null,null,null,null,null,null,null,null,null,{"$f":"matrixen!B19","v":"Receptie A"}]
[null,null,null,null,null,null,null,{"$f":"HLOOKUP($B$13,matrixen!$T$14:$AB$28,11,FALSE)","v":0}]
[null,null,null,null,null,null,null,{"$f":"HLOOKUP($B$13,matrixen!$T$14:$AB$28,12,FALSE)","v":0}]
[null,null,null,null,null,null,null,{"$f":"HLOOKUP($B$13,matrixen!$T$14:$AB$28,13,FALSE)","v":0}]
[null,null,null,null,null,null,null,{"$f":"HLOOKUP($B$13,matrixen!$T$14:$AB$28,14,FALSE)","v":0},null,null,null,null,null,null,null,null,null,null,null,null,null,null,null,null,null,null,{"$f":"matrixen!B23","v":"Schuimwijn van het huis (reeds inbegrepen)"}]
[null,null,null,null,null,null,null,{"$f":"HLOOKUP($B$13,matrixen!$T$14:$AB$28,15,FALSE)","v":0},null,null,null,null,null,null,null,null,null,null,null,null,null,null,null,null,null,null,{"$f":"matrixen!B24","v":"Cava"}]
[null,null,null,null,null,null,null,null,null,null,null,null,null,null,null,null,null,null,null,null,null,null,null,null,null,null,{"$f":"matrixen!B25","v":"Champagne"}]
[null,"Stel vanaf hier zelf uw menu's samen!",null,null,null,null,null,null,null,null,null,null,null,null,null,null,null,null,null,null,null,null,null,null,null,null,{"$f":"matrixen!B26","v":0}]
[]
[null,"I Koud voorgerecht.",null,null,null,null,null,null,null,null,null,null,null,null,null,null,null,null,null,null,null,null,null,null,null,null,{"$f":"matrixen!B44","v":"Maak hier uw keuze voor extra hapjes bij het aperitief"}]
[null,null,null,null,null,null,null,null,null,null,null,null,null,null,null,null,null,null,null,null,null,null,null,null,null,null,{"$f":"matrixen!B45","v":"Nootjes, chips en zoutkoekjes zoveel u wenst (gratis)"}]
[null,"Maak hier uw keuze indien u een koud voorgerecht wenst",null,{"$f":"VLOOKUP(B32,matrixen!A102:J120,10,FALSE)","v":0},{"$f":"IF(D32>1,1,0)","v":0},{"$f":"IF(B32<>matrixen!$A$102,\" <= Alle koude voorgerechten (behalve het buffet) omvatten één portie, vergezeld van stokbrood.\",\"\")","v":""},null,null,null,null,null,null,null,null,null,null,null,null,null,null,null,null,null,null,null,null,{"$f":"matrixen!B46","v":"Rauwe groenten (wortel, bloemkool, cocktailsaus) prijs per persoon:"}]
[null,"Maak hier uw keuze indien u een koud voorgerecht wenst",null,null,null,null,null,null,null,null,null,null,null,null,null,null,null,null,null,null,null,null,null,null,null,null,{"$f":"matrixen!B47","v":"Warme toostjes per stuk"}]
[null,"Huiswijn, bieren en frisdranken als forfait",null,{"$f":"IF(D32>0,VLOOKUP(B34,matrixen!A123:J125,10,FALSE),0)","v":0},null,null,null,null,null,null,null,null,null,null,null,null,null,null,null,null,null,null,null,null,null,null,{"$f":"matrixen!B48","v":"Koude toostjes per stuk"}]
[null,"Huiswijn, bieren en frisdranken als forfait",null,null,null,null,null,null,null,null,null,null,null,null,null,null,null,null,null,null,null,null,null,null,null,null,{"$f":"matrixen!B49","v":"aperitiefglaasjes per stuk"}]
[null,"II Soepen",null,null,null,null,null,null,null,null,null,null,null,null,null,null,null,null,null,null,null,null,null,null,null,null,{"$f":"matrixen!B50","v":"Oesters per stuk warm of koud"}]
[null,null,null,null,null,null,null,null,null,null,null,null,null,null,null,null,null,null,null,null,null,null,null,null,null,null,{"$f":"matrixen!B51","v":"wachtbordje met vispasteitje"}]
[null,"* betekent geschikt voor vegetariers. ",null,null,null,null,null,null,null,null,null,null,null,null,null,null,null,null,null,null,null,null,null,null,null,null,{"$f":"matrixen!B52","v":"wachtbordje van reuzentoost met gerookte zalm"}]
[null,"Maak hier uw keuze indien u soep wenst",null,{"$f":"IF(E44+E32>1,E40/2,E40)","v":0},{"$f":"IF(D39>1,1,0)","v":0},{"$f":"IF(B39<>matrixen!$A$138,\" <= Soep wordt steeds drie maal bediend.\",\"\")","v":""},null,null,null,null,null,null,null,null,null,null,null,null,null,null,null,null,null,null,null,null,{"$f":"matrixen!B53","v":"wachtbordje van lauw slaatje met gerookte zalm en scampi's"}]
[null,"Maak hier uw keuze indien u soep wenst",null,null,{"$f":"VLOOKUP(B39,matrixen!A138:I154,9,FALSE)","v":0},null,null,null,null,null,null,null,null,null,null,null,null,null,null,null,null,null,null,null,null,null,{"$f":"matrixen!B54","v":0}]
[null,"III Warme voorgerechten",null,null,null,null,null,null,null,null,null,null,null,null,null,null,null,null,null,null,null,null,null,null,null,null,{"$f":"matrixen!B55","v":0}]
[null,null,null,null,null,null,null,null,null,null,null,null,null,null,null,null,null,null,null,null,null,null,null,null,null,null,{"$f":"matrixen!B56","v":0}]
[null,"Alle hiernavolgende visgerechten zijn 99,99% zonder graten !",null,null,null,null,null,null,null,null,null,null,null,null,null,null,null,null,null,null,null,null,null,null,null,null,{"$f":"matrixen!A102","v":"Maak hier uw keuze indien u een koud voorgerecht wenst"}]
[null,"Maak hier uw keuze indien u een warm voorgerecht wenst",null,{"$f":"VLOOKUP(B44,matrixen!A178:J195,10,FALSE)","v":0},{"$f":"IF(D44>1,1,0)","v":0},{"$f":"IF(B44<>matrixen!$A$178,\" <= Alle warme voorgerechten omvatten één portie, vergezeld van stokbrood.\",\"\")","v":""},null,null,null,null,null,null,null,null,null,null,null,null,null,null,null,null,null,null,null,null,{"$f":"matrixen!A103","v":"½ kreeft “en belle vue”"}]
[null,"Maak hier uw keuze indien u een warm voorgerecht wenst",null,null,null,null,null,null,null,null,null,null,null,null,null,null,null,null,null,null,null,null,null,null,null,null,{"$f":"matrixen!A104","v":"Foie gras op 2 wijzen (als pastei en zacht gebakken lever)"}]
[null,"Huiswijn, bieren en frisdranken als forfait",null,{"$f":"IF(D44>0,VLOOKUP(B46,matrixen!A123:J125,10,FALSE),0)","v":0},null,null,null,null,null,null,null,null,null,null,null,null,null,null,null,null,null,null,null,null,null,null,{"$f":"matrixen!A105","v":"Verse ganzenleverpastei van het huis met Xeresgelei"}]
[null,"Huiswijn, bieren en frisdranken als forfait",null,null,null,null,null,null,null,null,null,null,null,null,null,null,null,null,null,null,null,null,null,null,null,null,{"$f":"matrixen!A106","v":"Gek slaatje van de chef met grijze garnalen, gerookte zalm en foie gras"}]
[null,"IV Sorbet",null,null,null,null,null,null,null,null,null,null,null,null,null,null,null,null,null,null,null,null,null,null,null,null,{"$f":"matrixen!A107","v":"Salade van verse grijze gepelde garnalen"}]
[null,null,null,null,null,null,null,null,null,null,null,null,null,null,null,null,null,null,null,null,null,null,null,null,null,null,{"$f":"matrixen!A108","v":"Lauw slaatje met scampi's, kwartelei en gerookte zalm"}]
[null,"Maak hier uw keuze indien u een bolletje sorbet als tussengerecht wenst. Kan ook voor het warm voorgerecht gegeven worden.",null,{"$f":"IF(E44+E32>1,E50/4,E50)","v":0},{"$f":"VLOOKUP(B50,matrixen!A204:J206,10,FALSE)","v":0},{"$f":"IF(D50>1,1,0)","v":0},null,null,null,null,null,null,null,null,null,null,null,null,null,null,null,null,null,null,null,null,{"$f":"matrixen!A109","v":"Gerookte zalm xxxxxxxxx"}]
["In dit kader vindt u de visgerechten als hoofdschotel  *** betekent 3 x bediend, anders 1 portie","Maak hier uw keuze indien u een bolletje sorbet als tussengerecht wenst. Kan ook voor het warm voorgerecht gegeven worden.",null,null,null,null,null,null,null,null,null,null,null,null,null,null,null,null,null,null,null,null,null,null,null,null,{"$f":"matrixen!A110","v":"Meloen met parmaham"}]
["In dit kader vindt u de vleesgerechten als hoofdschotel ","V a) De hoofdschotels. Kies een visgerecht OF een vleesgerecht OF gevogelte.",null,{"$f":"IF(B53=\"\",0,IF(D44+E40+D32 = 0,VLOOKUP(B53,P54:Q60,2,FALSE),0))","v":0},null,{"$f":"IF(D52> 0,\"<= Indien u een hoofdschotel naar believen kiest, zonder voorgerecht of soep wordt er een toeslag van \" & matrixen!J212 & \" gerekend.\",\"\")","v":""},null,null,null,null,null,null,null,null,null,null,null,null,null,null,null,null,null,null,null,null,{"$f":"matrixen!A111","v":"Gemarineerde zalm met asperges, dille en een rivierkreeftje"}]
["In dit kader vindt u gevogelte als hoofdschotel ",{"$f":"IF(B54<>matrixen!A221,'menu''s'!B54,IF(B55<>matrixen!A229,'menu''s'!B55,IF('menu''s'!B56<>matrixen!A249,'menu''s'!B56,\"\")))","v":""},null,null,null,null,null,null,null,null,null,null,null,null,null,null,null,null,null,null,null,null,null,null,null,null,{"$f":"matrixen!A112","v":"Zomers slaatje met gebakken kippereepjes + kalfszwezeriken"}]
[{"$f":"C54","v":0},"In dit kader vindt u de visgerechten als hoofdschotel  *** betekent 3 x bediend, anders 1 portie",{"$f":"IF(B54<>matrixen!A221,1,0)","v":0},{"$f":"VLOOKUP(B54,matrixen!A221:J228,10,FALSE)","v":0},null,{"$f":"IF(D$55+D$56>1,matrixen!A246,\"\")","v":""},null,null,null,null,null,null,null,null,null,{"$f":"matrixen!D213","v":"Jumbo mosselen naar believen"},null,null,null,null,null,null,null,null,null,null,{"$f":"matrixen!A113","v":"Frivool slaatje van gerookte zalm, St Jacobsvruchten en gepocheerde zalm "}]
[{"$f":"C55","v":0},"In dit kader vindt u de vleesgerechten als hoofdschotel ",{"$f":"IF(B55<>matrixen!A229,1,0)","v":0},{"$f":"VLOOKUP(B55,matrixen!A229:J244,10,FALSE)","v":0},null,{"$f":"IF(D$55+D$56+$D54>1,matrixen!A247,\"<= Hier moet u één hoofdgerecht - vlees, vis of gevogelte - selecteren evenals een drankformule.\")","v":"<= Hier moet u één hoofdgerecht - vlees, vis of gevogelte - selecteren evenals een drankformule."},null,null,null,null,null,null,null,null,null,{"$f":"matrixen!D214","v":"Gepocheerde zeetong met seizoengarnituur 3/kg"},null,null,null,null,null,null,null,null,null,null,{"$f":"matrixen!A114","v":"Zomers slaatje met gebakken kippereepjes"}]
[{"$f":"C56","v":0},"In dit kader vindt u gevogelte als hoofdschotel ",{"$f":"IF(B56<>matrixen!A249,1,0)","v":0},{"$f":"VLOOKUP(B56,matrixen!A249:J256,10,FALSE)","v":0},null,{"$f":"IF(D$55+D$56+D$54>1,matrixen!A248,\"\")","v":""},null,null,null,null,null,null,null,null,null,{"$f":"matrixen!D215","v":"Drieluik van vis roze zalm, groenlandse heilbot en tongfilet in kreeftroom"},null,null,null,null,null,null,null,null,null,null,{"$f":"matrixen!A115","v":"Bordje met  pandalusgarnalen en cocktailsaus"}]
[null,{"$f":"IF(C54+C55+C56>1,\"U mag slechts één keuze (vis - vlees - gevogelte) selecteren!\",\"\")","v":""},null,{"$f":"IF(C54+C55+C56>1,1/0,0)","v":0},null,null,null,null,null,null,null,null,null,null,null,{"$f":"matrixen!D216","v":"Ribbetjes 1 portie"},null,null,null,null,null,null,null,null,null,null,{"$f":"matrixen!A116","v":"Gegarneerde vispastei"}]
["Huiswijn, bieren en frisdranken als forfait","Huiswijn, bieren en frisdranken als forfait",null,{"$f":"IF(D54+D55+D56>0,VLOOKUP(B58,matrixen!A258:J261,10,FALSE),0)","v":0},null,null,null,null,null,null,null,null,null,null,null,{"$f":"matrixen!D217","v":"Kip aan het spit 1 portie"},null,null,null,null,null,null,null,null,null,null,{"$f":"matrixen!A117","v":"Tomaat Mozarella"}]
[1,{"$f":"matrixen!A229","v":"In dit kader vindt u de vleesgerechten als hoofdschotel "},null,null,null,null,null,null,null,null,null,null,null,null,null,{"$f":"matrixen!D218","v":"Varkens côte à l'os"},null,null,null,null,null,null,null,null,null,null,{"$f":"matrixen!A118","v":"Gepocheerde zalm op frivool slaatje met cocktailsaus"}]
[null,{"$f":"VLOOKUP(1,A54:B59,2,FALSE)","v":"In dit kader vindt u de vleesgerechten als hoofdschotel "},null,null,null,"Saussuggesties passend bij uw gerecht:",null,null,null,null,null,null,null,null,null,{"$f":"B53","v":""},{"$f":"matrixen!J212","v":3.5},null,null,null,null,null,null,null,null,null,{"$f":"matrixen!A119","v":"Duo van gerookte zalm en gepocheerde zalm"}]
[null,"V b) Kies uw saus bij uw gerecht. Rechts vindt u passende suggesties. Reeds inbegrepen in de prijs.",null,null,null,{"$f":"VLOOKUP($B$60,matrixen!$A$222:$V$256,13,FALSE)","v":0},null,{"$f":"VLOOKUP(F61,matrixen!$X$222:$AA$246,4,FALSE)","v":0},null,null,null,null,null,null,null,null,null,null,null,null,null,null,null,null,null,null,{"$f":"matrixen!A120","v":0}]
[null,null,null,null,null,{"$f":"VLOOKUP($B$60,matrixen!$A$222:$V$256,14,FALSE)","v":0},null,{"$f":"VLOOKUP(F62,matrixen!$X$222:$AA$246,4,FALSE)","v":0},null,null,null,null,null,null,null,null,null,null,null,null,null,null,null,null,null,null,{"$f":"matrixen!A121","v":0}]
[null,"Nog geen saus geselecteerd",null,null,null,{"$f":"VLOOKUP($B$60,matrixen!$A$222:$V$256,15,FALSE)","v":0},null,{"$f":"VLOOKUP(F63,matrixen!$X$222:$AA$246,4,FALSE)","v":0},null,null,null,null,null,null,null,null,null,null,null,null,null,null,null,null,null,null,{"$f":"matrixen!A122","v":0}]
[null,"Nog geen saus geselecteerd",null,null,null,{"$f":"VLOOKUP($B$60,matrixen!$A$222:$V$256,16,FALSE)","v":0},null,{"$f":"VLOOKUP(F64,matrixen!$X$222:$AA$246,4,FALSE)","v":0},null,null,null,null,null,null,null,null,null,null,null,null,null,null,null,null,null,null,{"$f":"matrixen!A123","v":"Huiswijn, bieren en frisdranken als forfait"}]
[null,null,null,null,null,{"$f":"VLOOKUP($B$60,matrixen!$A$222:$V$256,17,FALSE)","v":0},null,{"$f":"VLOOKUP(F65,matrixen!$X$222:$AA$246,4,FALSE)","v":0},null,null,null,null,null,null,null,null,null,null,null,null,null,null,null,null,null,null,{"$f":"matrixen!A124","v":"Domaine Joel Delauny Touraine  en/of Château Reynier, Bordeaux superieur,  bieren en frisdranken"}]
[null,null,null,null,null,{"$f":"VLOOKUP($B$60,matrixen!$A$222:$V$256,18,FALSE)","v":0},null,{"$f":"VLOOKUP(F66,matrixen!$X$222:$AA$246,4,FALSE)","v":0},null,null,null,null,null,null,null,null,null,null,null,null,null,null,null,null,null,null,{"$f":"matrixen!A125","v":0}]
[null,null,null,null,null,{"$f":"VLOOKUP($B$60,matrixen!$A$222:$V$256,19,FALSE)","v":0},null,{"$f":"VLOOKUP(F67,matrixen!$X$222:$AA$246,4,FALSE)","v":0},null,null,null,null,null,null,null,null,null,null,null,null,null,null,null,null,null,null,{"$f":"matrixen!A126","v":0}]
[null,null,null,null,null,{"$f":"VLOOKUP($B$60,matrixen!$A$222:$V$256,20,FALSE)","v":0},null,{"$f":"VLOOKUP(F68,matrixen!$X$222:$AA$246,4,FALSE)","v":0}]
[null,null,null,null,null,{"$f":"VLOOKUP($B$60,matrixen!$A$222:$V$256,21,FALSE)","v":0},null,{"$f":"VLOOKUP(F69,matrixen!$X$222:$AA$246,4,FALSE)","v":0}]
[null,"V c) Kies uw aardappelbereiding bij uw hoofdschotel",null,null,null,{"$f":"VLOOKUP($B$60,matrixen!$A$222:$V$256,22,FALSE)","v":0},null,{"$f":"VLOOKUP(F70,matrixen!$X$222:$AA$246,4,FALSE)","v":0}]
[null,null,null,null,null,{"$f":"VLOOKUP($B$60,matrixen!$A$222:$V$256,2,FALSE)","v":0},null,{"$f":"VLOOKUP(F71,matrixen!$X$222:$AA$246,4,FALSE)","v":0},null,null,null,null,null,null,null,null,null,null,null,null,null,null,null,null,null,null,{"$f":"matrixen!A138","v":"Maak hier uw keuze indien u soep wenst"}]
[null,"Nog geen aardappelbereiding geselecteerd",{"$f":"IF(B72=matrixen!M265,4,0)","v":0},null,null,{"$f":"VLOOKUP(B72,matrixen!M259:P271,4,FALSE)","v":0},null,null,null,null,null,null,null,null,null,null,null,null,null,null,null,null,null,null,null,null,{"$f":"matrixen!A139","v":"Schaaldierenroomsoep"}]
[null,"Nog geen aardappelbereiding geselecteerd",null,null,null,null,null,null,null,null,null,null,null,null,null,null,null,null,null,null,null,null,null,null,null,null,{"$f":"matrixen!A140","v":"Noordzeeketeltje"}]
[null,"V d) Kies uw groenten (tenzij u trio van puree koos, want dat geldt ook als groentebereiding)",null,null,null,null,null,null,null,null,null,null,null,null,null,{"$f":"matrixen!D212","v":0},null,null,null,null,null,null,{"$f":"matrixen!K212","v":0},null,null,null,{"$f":"matrixen!A141","v":"Romig groentesoepje , geparfumeerd met gerookte kipperfilets"}]
[null,null,null,null,null,null,null,null,null,null,null,null,null,null,null,null,null,null,null,null,null,null,{"$f":"matrixen!K213","v":0},null,null,null,{"$f":"matrixen!A142","v":"Ossenstaartsoep met verse stukjes ossenstaart"}]
[null,"Kies hier 4 verschillende warme groenten",{"$f":"IF(B76<>matrixen!$M$274,1,0)","v":0},{"$f":"VLOOKUP(B76,matrixen!$M$274:$Q$285,5,FALSE)","v":0},null,null,null,null,null,null,null,null,null,null,null,null,null,null,null,null,null,null,{"$f":"matrixen!K214","v":0},null,null,null,{"$f":"matrixen!A143","v":"Komkommerroomsoep *"}]
[null,"Kies hier 4 verschillende warme groenten",{"$f":"IF(B77<>matrixen!$M$274,1,0)","v":0},{"$f":"VLOOKUP(B77,matrixen!$M$274:$Q$285,5,FALSE)","v":0},null,null,null,null,null,null,null,null,null,null,null,null,null,null,null,null,null,null,{"$f":"matrixen!K215","v":0},null,null,null,{"$f":"matrixen!A144","v":"Aspergeroomsoep met koornbloemblaadjes *"}]
[null,"Kies hier 4 verschillende warme groenten",{"$f":"IF(B78<>matrixen!$M$274,1,0)","v":0},{"$f":"VLOOKUP(B78,matrixen!$M$274:$Q$285,5,FALSE)","v":0},null,null,null,null,null,null,null,null,null,null,null,null,null,null,null,null,null,null,{"$f":"matrixen!K216","v":0},null,null,null,{"$f":"matrixen!A145","v":"Aalsterse soep met toostje onder kaas (= ajuinsoep) *"}]
[null,"Kies hier 4 verschillende warme groenten",{"$f":"IF(B79<>matrixen!$M$274,1,0)","v":0},{"$f":"VLOOKUP(B79,matrixen!$M$274:$Q$285,5,FALSE)","v":0},null,null,null,null,null,null,null,null,null,null,null,null,null,null,null,null,null,null,{"$f":"matrixen!K217","v":0},null,null,null,{"$f":"matrixen!A146","v":"Pompoensoep (sept. okt. nov.) *"}]
[null,"Kies hier 4 verschillende warme groenten",null,null,null,null,null,null,null,null,null,null,null,null,null,null,null,null,null,null,null,null,{"$f":"matrixen!K218","v":0},null,null,null,{"$f":"matrixen!A147","v":"Kervelroomsoep met gerookte eend"}]
[null,"of kies uit één van de volgende assortimenten (geen afwijkingen mogelijk)",null,{"$f":"IF(C72+C76+C77+C78+C79+C83>4,1/0,0)","v":0},null,null,null,null,null,null,null,null,null,null,null,{"$f":"matrixen!D219","v":0},{"$f":"matrixen!J219","v":0},null,null,null,null,null,{"$f":"matrixen!K219","v":0},null,null,null,{"$f":"matrixen!A148","v":"Preiroomsoep met broccoligarnituur en gebakken spekjes"}]
[null,{"$f":"IF(C72+C76+C77+C78+C79+C83>4,\"Foute keuze, u mag alleen trio van puree of 4 warme groenten of een assortiment selecteren!\",\"\")","v":""},null,null,null,null,null,null,null,null,null,null,null,null,null,null,null,null,null,null,null,null,null,null,null,null,{"$f":"matrixen!A149","v":"Selderroomsoep *"}]
[null,"Kies één van de volgende assortimenten",{"$f":"IF(B83<>matrixen!M287,4,0)","v":0},null,null,{"$f":"VLOOKUP(B83,matrixen!M287:R292,6,FALSE)","v":0},null,null,null,null,null,null,null,null,null,null,null,null,null,null,null,null,null,null,null,null,{"$f":"matrixen!A150","v":"Tomatenroomsoep *"}]
[null,"Kies één van de volgende assortimenten",null,null,null,null,null,null,null,null,null,null,null,null,null,null,null,null,null,null,null,null,null,null,null,null,{"$f":"matrixen!A151","v":"Soepje van boschampignons en gerookte paling"}]
[null,"Selecteer hier uw dessert.",null,null,null,null,null,null,null,null,null,null,null,null,null,null,null,null,null,null,null,null,null,null,null,null,{"$f":"matrixen!A152","v":"Preisoep met gevogeltereepjes"}]
[null,"Nog geen dessert geselecteerd",null,{"$f":"IF(E32+E39+E44>1,E86,E86)","v":0},{"$f":"VLOOKUP(B86,dessert,8,FALSE)","v":0},{"$f":"VLOOKUP($B$86,dessert,10,FALSE)","v":0},null,null,null,null,null,null,null,null,null,null,null,null,null,null,null,null,null,null,null,null,{"$f":"matrixen!A153","v":"Wortelsoep *"}]
[null,"Nog geen dessert geselecteerd",null,null,null,{"$f":"VLOOKUP($B$86,dessert,11,FALSE)","v":0},null,null,null,null,null,null,null,null,null,null,null,null,null,null,null,null,null,null,null,null,{"$f":"matrixen!A154","v":"Agnes Sorel-roomsoep met shiitakes"}]
[null,null,null,null,null,{"$f":"VLOOKUP($B$86,dessert,12,FALSE)","v":0}]
[null,null,null,null,null,{"$f":"VLOOKUP($B$86,dessert,13,FALSE)","v":0},null,null,null,null,null,null,null,null,null,null,null,null,null,null,null,null,null,null,null,null,{"$f":"matrixen!A178","v":"Maak hier uw keuze indien u een warm voorgerecht wenst"}]
[null,null,null,null,null,{"$f":"VLOOKUP($B$86,dessert,14,FALSE)","v":0},null,null,null,null,null,null,null,null,null,null,null,null,null,null,null,null,null,null,null,null,{"$f":"matrixen!A179","v":"Scampi's \"maison\" (in kreeftesaus met kerrie)"}]
[null,null,null,null,null,{"$f":"VLOOKUP($B$86,dessert,15,FALSE)","v":0},null,null,null,null,null,null,null,null,null,null,null,null,null,null,null,null,null,null,null,null,{"$f":"matrixen!A180","v":"Gevarieerd slaatje met gebakken kalfszwezeriken"}]
[null,"Selecteer hier uw koffie",null,null,null,null,null,null,null,null,null,null,null,null,null,null,null,null,null,null,null,null,null,null,null,null,{"$f":"matrixen!A181","v":"Met zalm gevulde tongfilets in gekruide roomsaus"}]
[null,"Nog geen keuze gemaakt",null,{"$f":"IF(E32+E39+E44+F50>1,0,E93)","v":0},{"$f":"VLOOKUP(B93,matrixen!B93:I96,8,FALSE)","v":0},null,null,null,null,null,null,null,null,null,null,null,null,null,null,null,null,null,null,null,null,null,{"$f":"matrixen!A182","v":"Rolletje van zalm en tong, noordzeegarnalen en een langoustine"}]
[null,"Nog geen keuze gemaakt",null,null,null,null,null,null,null,null,null,null,null,null,null,null,null,null,null,null,null,null,null,null,null,null,{"$f":"matrixen!A183","v":"Schelp met zalm-victoria-garnalen en fijne groenten"}]
[null,"Alle drank na de maaltijd komt op één rekening en wordt door de organisator van het feest betaald",null,{"$f":"VLOOKUP(B$95,matrixen!$A$346:$P$348,15,FALSE)","v":0},{"$f":"VLOOKUP(B$95,matrixen!$A$346:$P$348,16,FALSE)","v":"één rekening"},"Vegetariërs: ","nee","Speciale dieten: ","nee","Halal bereidingen: ","nee",null,null,null,null,null,null,null,null,null,null,null,null,null,null,null,{"$f":"matrixen!A184","v":"Groenlandse heilbotfilet in kreeftenroomsaus en een rivierkreeftje"}]
[null,"Alle drank na de maaltijd komt op één rekening en wordt door de organisator van het feest betaald",null,null,null,null,null,null,null,null,null,null,null,null,null,null,null,null,null,null,null,null,null,null,null,null,{"$f":"matrixen!A185","v":"Duo van Groenlandse heilbot en scampi's met een snuifje saffraan"}]
[null,"E32+E39+E44",null,null,null,"Feest met discobar: ","nee","Allergenen: ","nee",{"$f":"IF($I$97=\"ja\",matrixen!A352,\"\")","v":""},null,null,null,null,null,null,null,null,null,null,null,null,null,null,null,null,{"$f":"matrixen!A186","v":"Duo van Groenlandse heilbot en St. Jacobsvruchten"}]
[null,"Om uw selecties te bewaren, gelieve ze op te slaan op uw harde schijf. (opslaan als)",null,null,null,null,null,null,null,{"$f":"IF($I$97=\"ja\",matrixen!A353,\"\")","v":""},null,null,null,null,null,null,null,null,null,null,null,null,null,null,null,null,{"$f":"matrixen!A187","v":"Bladerdeeggebakje gevuld met kip en kalfszwezeriken"}]
[null,"Om uw selecties af te drukken druk pagina 1 van tabblad  \"reservatievoorstel\" af.",null,null,null,null,null,{"$f":"IF(G97=\"ja\",matrixen!A356,\"\")","v":""},null,{"$f":"IF($I$97=\"ja\",matrixen!A354,\"\")","v":""},null,null,null,null,null,null,null,null,null,null,null,null,null,null,null,null,{"$f":"matrixen!A188","v":"Bladerdeeggebakje gevuld met kip"}]
[null,"Om een aanvraag naar ons te versturen stuur een mail naar info@katelijnenhof met in bijlage dit bestand vanaf uw harde schijf.",null,null,null,null,null,null,null,null,null,null,null,null,null,null,null,null,null,null,null,null,null,null,null,null,{"$f":"matrixen!A189","v":"Victoriabaarsfilet in preiroomsaus"}]
[null,null,null,null,"Eventuele datum van het feest:",null,null,"Overzicht van uw selectie:",null,null,null,null,null,null,null,null,null,null,null,null,null,null,null,null,null,null,{"$f":"matrixen!A190","v":"Witte zalmfilet in gekruide roomsaus of in kreeftenroomsaus"}]
[null,null,null,null,null,"Het exacte aantal personen en de tafelschikking dient ons meegedeeld te worden de vrijdag van het weekend voordien.",null,{"$f":"IF(B13=matrixen!B11,\"\",B13)","v":""},null,null,null,{"$f":"D13","v":0},null,null,null,null,null,null,null,null,null,null,null,null,null,null,{"$f":"matrixen!A191","v":"Schelpje met noordzeevis en fijne groenten"}]
[null,null,null,null,"geraamd aantal volwassenen:",null,null,{"$f":"IF(L103>0,B120,\"\")","v":""},{"$f":"IF(L103>0,\"geldt alleen bij recepties!!!\",\"\")","v":""},null,null,{"$f":"D120","v":0},null,null,null,null,null,null,null,null,null,null,null,null,null,null,{"$f":"matrixen!A192","v":"Gepocheerde verse roze zalm met bieslooksaus"}]
[null,null,null,null,"geraamd aantal kinderen 6 j. t.e.m. 11 jr. 11 maand:",null,null,{"$f":"IF(B127=matrixen!$B$44,\"\",B127)","v":""},null,null,null,{"$f":"D127","v":0},null,null,null,null,null,null,null,null,null,null,null,null,null,null,{"$f":"matrixen!A193","v":"Halve aardappel met noordzeevis en lauwe grijze garnalen "}]
[null,null,null,null,"geraamd aantal kinderen 3 j. t.e.m. 5 j. 11 maand:",null,null,{"$f":"IF(B128=matrixen!$B$44,\"\",B128)","v":""},null,null,null,{"$f":"D128","v":0},null,null,null,null,null,null,null,null,null,null,null,null,null,null,{"$f":"matrixen!A194","v":0}]
[null,null,null,null,"geraamd aantal kinderen  0 t.e.m. 2 j. 11 maand:",null,null,{"$f":"IF(B129=matrixen!$B$44,\"\",B129)","v":""},null,null,null,{"$f":"D129","v":0},null,null,null,null,null,null,null,null,null,null,null,null,null,null,{"$f":"matrixen!A195","v":0}]
[null,null,null,null,null,null,null,{"$f":"IF(B130=matrixen!$B$44,\"\",B130)","v":""},null,null,null,{"$f":"D130","v":0},null,null,null,null,null,null,null,null,null,null,null,null,null,null,{"$f":"matrixen!A166","v":0}]
[null,null,null,null,"uur van aankomst:",null,null,{"$f":"IF(B131=matrixen!$B$44,\"\",B131)","v":""},null,null,null,{"$f":"D131","v":0},null,null,null,null,null,null,null,null,null,null,null,null,null,null,{"$f":"matrixen!A198","v":"Selecteer hier uw drank bij het warm voorgerecht (zoniet wordt standaard de huiswijn gekozen)"}]
[null,null,null,null,"aan tafel om:",null,null,{"$f":"IF(B32=matrixen!A102,\"\",B32)","v":""},null,null,null,{"$f":"D32","v":0},null,null,null,null,null,null,null,null,null,null,null,null,null,null,{"$f":"matrixen!A123","v":"Huiswijn, bieren en frisdranken als forfait"}]
[null,null,null,null,"Uw naam:",null,null,{"$f":"IF(L110=0,\"\",B34)","v":""},null,null,null,{"$f":"D34","v":0},null,null,null,null,null,null,null,null,null,null,null,null,null,null,{"$f":"matrixen!A124","v":"Domaine Joel Delauny Touraine  en/of Château Reynier, Bordeaux superieur,  bieren en frisdranken"}]
[null,null,null,null,"Adres:",null,null,{"$f":"IF(B39=matrixen!A138,\"\",B39)","v":""},null,null,null,{"$f":"D40","v":0},null,null,null,null,null,null,null,null,null,null,null,null,null,null,{"$f":"matrixen!A201","v":0}]
[null,null,null,null,"Stad:",null,null,{"$f":"IF(B44=matrixen!A178,\"\",B44)","v":""},null,null,null,{"$f":"D44","v":0},null,null,null,null,null,null,null,null,null,null,null,null,null,null,{"$f":"matrixen!A202","v":0}]
[null,null,null,null,"Tel nr:",null,null,{"$f":"IF(L113=0,\"\",B46)","v":""},null,null,null,{"$f":"D46","v":0},null,null,null,null,null,null,null,null,null,null,null,null,null,null,{"$f":"matrixen!A203","v":0}]
[null,null,null,null,"email:",null,null,{"$f":"IF(B50=matrixen!A204,\"\",B50)","v":""},null,null,null,{"$f":"D50","v":0},null,null,null,null,null,null,null,null,null,null,null,null,null,null,{"$f":"matrixen!A204","v":"Maak hier uw keuze indien u een bolletje sorbet als tussengerecht wenst. Kan ook voor het warm voorgerecht gegeven worden."}]
[null,null,null,null,"geraamde totalen uit andere rekenbladen:",null,null,{"$f":"IF(B54=matrixen!A221,IF(B55=matrixen!A229,IF(B56=matrixen!A249,\"\",B56),B55),B54)","v":""},null,null,null,{"$f":"D54+D55+D56","v":0},null,null,null,null,null,null,null,null,null,null,null,null,null,null,{"$f":"matrixen!A205","v":"Bolletje sorbet limoen"}]
[null,null,null,"(vb: kindermenus)",null,null,null,{"$f":"IF(B72=matrixen!M259,\"\",B72)","v":""},null,{"$f":"IF(B63=matrixen!X221,\"\",B63)","v":""},null,null,null,null,null,null,null,null,null,null,null,null,null,null,null,null,{"$f":"matrixen!A206","v":"Bolletje sorbet framboos"}]
[null,null,null,null,"Geschat factuurtotaal:",{"$f":"Reservatievoorstel!H14","v":0},null,{"$f":"IF(B76=matrixen!$M$274,IF(B83=matrixen!M287,\"\",B83),B76)","v":""},null,null,null,{"$f":"IF(B78=matrixen!$M$274,\"\",B78)","v":""},null,null,null,null,null,null,null,null,null,null,null,null,null,null,{"$f":"matrixen!A220","v":0}]
[null,"Mogelijke supplementen bij de recepties","(Gebaseerd op de door u ingebrachte gegevens)",null,null,null,null,{"$f":"IF(B77=matrixen!$M$274,\"\",B77)","v":""},null,null,null,{"$f":"IF(B79=matrixen!$M$274,\"\",B79)","v":""},null,null,null,null,null,null,null,null,null,null,null,null,null,null,{"$f":"matrixen!A221","v":"In dit kader vindt u de visgerechten als hoofdschotel  *** betekent 3 x bediend, anders 1 portie"}]
[null,null,null,null,null,null,null,{"$f":"IF(L119=0,\"\",B58)","v":""},null,null,null,{"$f":"D58","v":0},null,null,null,null,null,null,null,null,null,null,null,null,null,null,{"$f":"matrixen!A222","v":"Jumbo mosselen naar believen"}]
[null,"Schuimwijn van het huis (reeds inbegrepen)",null,{"$f":"VLOOKUP(B120,matrixen!B23:I26,8,FALSE)","v":0},null,"korting bij contante betaling:",null,{"$f":"IF(B86=matrixen!B66,\"\",B86)","v":""},null,null,null,{"$f":"D86","v":0},null,null,null,null,null,null,null,null,null,null,null,null,null,null,{"$f":"matrixen!A223","v":"Gepocheerde zeetong met seizoengarnituur 3/kg"}]
[null,"Schuimwijn van het huis (reeds inbegrepen)",null,null,null,{"$f":"F117*0.02","v":0},null,{"$f":"IF(B93=matrixen!B93,\"\",B93)","v":""},null,null,null,{"$f":"D93","v":0},null,null,null,null,null,null,null,null,null,null,null,null,null,null,{"$f":"matrixen!A224","v":"Drieluik van vis roze zalm, groenlandse heilbot en tongfilet in kreeftroom"}]
[null,null,null,null,"saldo:",{"$f":"F117-F121","v":0},null,"Keuze drank na de maaltijd:",null,null,null,{"$f":"E95","v":"één rekening"},null,null,null,null,null,null,null,null,null,null,null,null,null,null,{"$f":"matrixen!A225","v":"Groenlandse heilbotfilet in kreeftenroomsaus met groenten***"}]
[null,null,null,null,null,null,null,null,null,null,"Gaat u akkoord met de algemene verkoopsvoorwaarden?","ja",null,null,null,null,null,null,null,null,null,null,null,null,null,null,{"$f":"matrixen!A226","v":"Witte zalmfilet in gekruide roomsaus***"}]
[null,"Eventueel: extra hapjes bij het aperitief.",null,null,null,null,null,null,null,null,"Voorkeur tafelschikking: ","geen voorkeur",null,null,null,null,null,null,null,null,null,null,null,null,null,null,{"$f":"matrixen!A227","v":"Victoriabaarsfilet in preiroomsaus***"}]
[null,null,null,null,null,null,null,null,null,null,"Wijze van betaling: ","Betaling op de dag zelf (cash of bancontact), u bekomt 2% korting op het totaal",null,null,null,null,null,null,null,null,null,null,null,null,null,null,{"$f":"matrixen!A228","v":"Gepocheerde zalm ***"}]
[null,null,null,null,{"$f":"SUMIF(B127:B131,\"warme toostjes per stuk\",D127:D131)","v":0},{"$f":"IF($E$126>0,matrixen!B58,\"\")","v":""},{"$f":"SUMIF(B127:B131,\"koude toostjes per stuk\",D127:D131)","v":0},{"$f":"IF($G$126>0,matrixen!E58,\"\")","v":""},{"$f":"SUMIF(B127:B131,\"aperitiefglaasjes per stuk\",D127:D131)","v":0},{"$f":"IF($I$126>0,matrixen!H58,\"\")","v":""},null,null,"Wenst u een factuur ? ","nee",null,null,null,null,null,null,null,null,null,null,null,null,{"$f":"matrixen!A229","v":"In dit kader vindt u de vleesgerechten als hoofdschotel "}]
[null,"Maak hier uw keuze voor extra hapjes bij het aperitief",null,{"$f":"VLOOKUP(B127,matrixen!$B$44:$I$55,8,FALSE)","v":0},null,{"$f":"IF($E$126>0,matrixen!B59,\"\")","v":""},null,{"$f":"IF($G$126>0,matrixen!E59,\"\")","v":""},null,{"$f":"IF($I$126>0,matrixen!H59,\"\")","v":""},null,null,{"$f":"IF(N126=\"ja\",\"Gelieve uw facturatiegegevens bij opmerkingen in te vullen.\",\"\")","v":""},null,null,null,null,null,null,null,null,null,null,null,null,null,{"$f":"matrixen!A230","v":"Filet pur (Holstein)"}]
[null,"Maak hier uw keuze voor extra hapjes bij het aperitief",null,{"$f":"VLOOKUP(B128,matrixen!$B$44:$I$55,8,FALSE)","v":0},null,{"$f":"IF($E$126>0,matrixen!B60,\"\")","v":""},null,{"$f":"IF($G$126>0,matrixen!E60,\"\")","v":""},null,{"$f":"IF($I$126>0,matrixen!H60,\"\")","v":""},null,null,null,null,null,null,null,null,null,null,null,null,null,null,null,null,{"$f":"matrixen!A231","v":"Buffet met côte à l’os, 3 sausen en roerbakgroenten"}]
[null,"Maak hier uw keuze voor extra hapjes bij het aperitief",null,{"$f":"VLOOKUP(B129,matrixen!$B$44:$I$55,8,FALSE)","v":0},null,{"$f":"IF($E$126>0,matrixen!B61,\"\")","v":""},null,{"$f":"IF($G$126>0,matrixen!E61,\"\")","v":""},null,{"$f":"IF($I$126>0,matrixen!H61,\"\")","v":""},null,null,null,null,null,null,null,null,null,null,null,null,null,null,null,null,{"$f":"matrixen!A232","v":"Lamsfilet"}]
[null,"Maak hier uw keuze voor extra hapjes bij het aperitief",null,{"$f":"VLOOKUP(B130,matrixen!$B$44:$I$55,8,FALSE)","v":0},null,{"$f":"IF($E$126>0,matrixen!B62,\"\")","v":""},null,{"$f":"IF($G$126>0,matrixen!E62,\"\")","v":""},null,{"$f":"IF($I$126>0,matrixen!H62,\"\")","v":""},null,null,null,null,null,null,null,null,null,null,null,null,null,null,null,null,{"$f":"matrixen!A233","v":"Kalfsgebraad"}]
[null,"Maak hier uw keuze voor extra hapjes bij het aperitief",null,{"$f":"VLOOKUP(B131,matrixen!$B$44:$I$55,8,FALSE)","v":0},null,{"$f":"IF($E$126>0,matrixen!B63,\"\")","v":""},null,{"$f":"IF($G$126>0,matrixen!E63,\"\")","v":""},null,{"$f":"IF($I$126>0,matrixen!H63,\"\")","v":""},null,null,null,null,null,null,null,null,null,null,null,null,null,null,null,null,{"$f":"matrixen!A234","v":"Rosbief (Belgisch wit-blauw)"}]
[null,"Maak hier uw keuze voor extra hapjes bij het aperitief",null,null,null,{"$f":"IF($E$126>0,matrixen!B64,\"\")","v":""},null,{"$f":"IF($G$126>0,matrixen!E64,\"\")","v":""},null,null,null,null,null,null,null,null,null,null,null,null,null,null,null,null,null,null,{"$f":"matrixen!A235","v":"Variatie van vlees  roastbeef,  varkensfilet en lamsnootjes"}]
[null,null,null,null,null,null,null,null,null,null,null,null,null,null,null,null,null,null,null,null,null,null,null,null,null,null,{"$f":"matrixen!A236","v":"Varkenshaasjes"}]
[null,null,null,null,"Reden feest:",null,null,null,null,null,null,null,null,null,null,null,null,null,null,null,null,null,null,null,null,null,{"$f":"matrixen!A237","v":"Varkens côte à l'os"}]
[null,null,null,null,"Opmerking:",null,null,null,null,null,null,null,null,null,null,null,null,null,null,null,null,null,null,null,null,null,{"$f":"matrixen!A238","v":"Varkensgebraad "}]
[null,null,null,null,null,null,null,null,null,null,null,null,null,null,null,null,null,null,null,null,null,null,null,null,null,null,{"$f":"matrixen!A239","v":"Duivelsgebraad"}]
[null,null,null,null,null,null,null,null,null,null,null,null,null,null,null,null,null,null,null,null,null,null,null,null,null,null,{"$f":"matrixen!A240","v":"Ardeens gebraad"}]
[null,null,null,null,null,null,null,null,null,null,null,null,null,null,null,null,null,null,null,null,null,null,null,null,null,null,{"$f":"matrixen!A241","v":"Kasselrib "}]
[null,null,null,null,null,null,null,null,null,null,null,null,null,null,null,null,null,null,null,null,null,null,null,null,null,null,{"$f":"matrixen!A242","v":"Ribbetjes 1 portie"}]
[]
[null,null,null,null,null,null,null,null,null,null,null,null,null,null,null,null,null,null,null,null,null,null,null,null,null,null,{"$f":"matrixen!A249","v":"In dit kader vindt u gevogelte als hoofdschotel "}]
[null,null,null,null,null,null,null,null,null,null,null,null,null,null,null,null,null,null,null,null,null,null,null,null,null,null,{"$f":"matrixen!A250","v":"Eendenborstfilet"}]
[null,null,null,null,null,null,null,null,null,null,null,null,null,null,null,null,null,null,null,null,null,null,null,null,null,null,{"$f":"matrixen!A251","v":"Kalkoen verrijkt met verse kreeft"}]
[null,null,null,null,null,null,null,null,null,null,null,null,null,null,null,null,null,null,null,null,null,null,null,null,null,null,{"$f":"matrixen!A252","v":"Parelhoen"}]
[null,null,null,null,null,null,null,null,null,null,null,null,null,null,null,null,null,null,null,null,null,null,null,null,null,null,{"$f":"matrixen!A253","v":"Kippenfilet met grijze garnalen "}]
[null,null,null,null,null,null,null,null,null,null,null,null,null,null,null,null,null,null,null,null,null,null,null,null,null,null,{"$f":"matrixen!A254","v":"Kalkoenfilet"}]
[null,null,null,null,null,null,null,null,null,null,null,null,null,null,null,null,null,null,null,null,null,null,null,null,null,null,{"$f":"matrixen!A255","v":"Kippenfilet"}]
[null,null,null,null,null,null,null,null,null,null,null,null,null,null,null,null,null,null,null,null,null,null,null,null,null,null,{"$f":"matrixen!A256","v":"Kip aan het spit 1 portie"}]
[]
[]
[]
[]
[]
[null,null,null,null,null,null,null,null,null,null,null,null,null,null,null,null,null,null,null,null,null,null,null,null,null,null,{"$f":"matrixen!A258","v":"Selecteer hier uw drank bij het hoofdgerecht (zoniet wordt standaard de huiswijn gekozen)"}]
[null,null,null,null,null,null,null,null,null,null,null,null,null,null,null,null,null,null,null,null,null,null,null,null,null,null,{"$f":"matrixen!A259","v":"Huiswijn, bieren en frisdranken als forfait"}]
[null,null,null,null,null,null,null,null,null,null,null,null,null,null,null,null,null,null,null,null,null,null,null,null,null,null,{"$f":"matrixen!A260","v":"Domaine Joel Delauny Touraine  en/of Château Reynier, Bordeaux superieur,  bieren en frisdranken"}]
[null,null,null,null,null,null,null,null,null,null,null,null,null,null,null,null,null,null,null,null,null,null,null,null,null,null,{"$f":"matrixen!A261","v":0}]
[]
[null,null,null,null,null,null,null,null,null,null,null,null,null,null,null,null,null,null,null,null,null,null,null,null,null,null,{"$f":"matrixen!X221","v":"Nog geen saus geselecteerd"}]
[null,null,null,null,null,null,null,null,null,null,null,null,null,null,null,null,null,null,null,null,null,null,null,null,null,null,{"$f":"matrixen!X222","v":"kreeftsaus met groentebrunoise"}]
[null,null,null,null,null,null,null,null,null,null,null,null,null,null,null,null,null,null,null,null,null,null,null,null,null,null,{"$f":"matrixen!X223","v":"gekruide roomsaus"}]
[null,null,null,null,null,null,null,null,null,null,null,null,null,null,null,null,null,null,null,null,null,null,null,null,null,null,{"$f":"matrixen!X224","v":"garnalenroomsaus"}]
[null,null,null,null,null,null,null,null,null,null,null,null,null,null,null,null,null,null,null,null,null,null,null,null,null,null,{"$f":"matrixen!X225","v":"kreeftsaus zonder groenten"}]
[null,null,null,null,null,null,null,null,null,null,null,null,null,null,null,null,null,null,null,null,null,null,null,null,null,null,{"$f":"matrixen!X226","v":"saffraansaus"}]
[null,null,null,null,null,null,null,null,null,null,null,null,null,null,null,null,null,null,null,null,null,null,null,null,null,null,{"$f":"matrixen!X227","v":"preiroomsaus"}]
[null,null,null,null,null,null,null,null,null,null,null,null,null,null,null,null,null,null,null,null,null,null,null,null,null,null,{"$f":"matrixen!X228","v":"mosterdsausje met gefruite prei"}]
[null,null,null,null,null,null,null,null,null,null,null,null,null,null,null,null,null,null,null,null,null,null,null,null,null,null,{"$f":"matrixen!X229","v":"bieslooksaus"}]
[null,null,null,null,null,null,null,null,null,null,null,null,null,null,null,null,null,null,null,null,null,null,null,null,null,null,{"$f":"matrixen!X230","v":"bearnaise"}]
[null,null,null,null,null,null,null,null,null,null,null,null,null,null,null,null,null,null,null,null,null,null,null,null,null,null,{"$f":"matrixen!X231","v":"romige portosaus"}]
[null,null,null,null,null,null,null,null,null,null,null,null,null,null,null,null,null,null,null,null,null,null,null,null,null,null,{"$f":"matrixen!X232","v":"pepersaus"}]
[null,null,null,null,null,null,null,null,null,null,null,null,null,null,null,null,null,null,null,null,null,null,null,null,null,null,{"$f":"matrixen!X233","v":"grootmoeders wijze"}]
[null,null,null,null,null,null,null,null,null,null,null,null,null,null,null,null,null,null,null,null,null,null,null,null,null,null,{"$f":"matrixen!X234","v":"blackwell"}]
[null,null,null,null,null,null,null,null,null,null,null,null,null,null,null,null,null,null,null,null,null,null,null,null,null,null,{"$f":"matrixen!X235","v":"mosterd en look"}]
[null,null,null,null,null,null,null,null,null,null,null,null,null,null,null,null,null,null,null,null,null,null,null,null,null,null,{"$f":"matrixen!X236","v":"fijne groentesaus"}]
[null,null,null,null,null,null,null,null,null,null,null,null,null,null,null,null,null,null,null,null,null,null,null,null,null,null,{"$f":"matrixen!X237","v":"bordelaise"}]
[null,null,null,null,null,null,null,null,null,null,null,null,null,null,null,null,null,null,null,null,null,null,null,null,null,null,{"$f":"matrixen!X238","v":"fijne kruidensaus"}]
[null,null,null,null,null,null,null,null,null,null,null,null,null,null,null,null,null,null,null,null,null,null,null,null,null,null,{"$f":"matrixen!X239","v":"witte mosterdsaus"}]
[null,null,null,null,null,null,null,null,null,null,null,null,null,null,null,null,null,null,null,null,null,null,null,null,null,null,{"$f":"matrixen!X240","v":"jagerssaus"}]
[null,null,null,null,null,null,null,null,null,null,null,null,null,null,null,null,null,null,null,null,null,null,null,null,null,null,{"$f":"matrixen!X241","v":"champignonroomsaus"}]
[null,null,null,null,null,null,null,null,null,null,null,null,null,null,null,null,null,null,null,null,null,null,null,null,null,null,{"$f":"matrixen!X242","v":"koude sausjes inbegrepen"}]
[null,null,null,null,null,null,null,null,null,null,null,null,null,null,null,null,null,null,null,null,null,null,null,null,null,null,{"$f":"matrixen!X243","v":"geen saus voorzien"}]
[null,null,null,null,null,null,null,null,null,null,null,null,null,null,null,null,null,null,null,null,null,null,null,null,null,null,{"$f":"matrixen!X244","v":"geen saus nodig"}]
[null,null,null,null,null,null,null,null,null,null,null,null,null,null,null,null,null,null,null,null,null,null,null,null,null,null,{"$f":"matrixen!X245","v":"sinaasappelsaus"}]
[]
[null,null,null,null,null,null,null,null,null,null,null,null,null,null,null,null,null,null,null,null,null,null,null,null,null,null,{"$f":"matrixen!M259","v":"Nog geen aardappelbereiding geselecteerd"}]
[null,null,null,null,null,null,null,null,null,null,null,null,null,null,null,null,null,null,null,null,null,null,null,null,null,null,{"$f":"matrixen!M260","v":"kroketjes"}]
[null,null,null,null,null,null,null,null,null,null,null,null,null,null,null,null,null,null,null,null,null,null,null,null,null,null,{"$f":"matrixen!M261","v":"friet"}]
[null,null,null,null,null,null,null,null,null,null,null,null,null,null,null,null,null,null,null,null,null,null,null,null,null,null,{"$f":"matrixen!M262","v":"roomaardappel"}]
[null,null,null,null,null,null,null,null,null,null,null,null,null,null,null,null,null,null,null,null,null,null,null,null,null,null,{"$f":"matrixen!M263","v":"aardappel in de pel"}]
[null,null,null,null,null,null,null,null,null,null,null,null,null,null,null,null,null,null,null,null,null,null,null,null,null,null,{"$f":"matrixen!M264","v":"ovenaardappel"}]
[null,null,null,null,null,null,null,null,null,null,null,null,null,null,null,null,null,null,null,null,null,null,null,null,null,null,{"$f":"matrixen!M265","v":"trio van puree"}]
[null,null,null,null,null,null,null,null,null,null,null,null,null,null,null,null,null,null,null,null,null,null,null,null,null,null,{"$f":"matrixen!M266","v":"rijst"}]
[null,null,null,null,null,null,null,null,null,null,null,null,null,null,null,null,null,null,null,null,null,null,null,null,null,null,{"$f":"matrixen!M267","v":"koude aardappelbrunoise"}]
[null,null,null,null,null,null,null,null,null,null,null,null,null,null,null,null,null,null,null,null,null,null,null,null,null,null,{"$f":"matrixen!M268","v":"krielaardappeltjes"}]
[null,null,null,null,null,null,null,null,null,null,null,null,null,null,null,null,null,null,null,null,null,null,null,null,null,null,{"$f":"matrixen!M269","v":"puree"}]
[null,null,null,null,null,null,null,null,null,null,null,null,null,null,null,null,null,null,null,null,null,null,null,null,null,null,{"$f":"matrixen!M270","v":"tijmaardappelen"}]
[null,null,null,null,null,null,null,null,null,null,null,null,null,null,null,null,null,null,null,null,null,null,null,null,null,null,{"$f":"matrixen!M271","v":"rozemarijnaardappelen"}]
[]
[]
[null,null,null,null,null,null,null,null,null,null,null,null,null,null,null,null,null,null,null,null,null,null,null,null,null,null,{"$f":"matrixen!M274","v":"Kies hier 4 verschillende warme groenten"}]
[null,null,null,null,null,null,null,null,null,null,null,null,null,null,null,null,null,null,null,null,null,null,null,null,null,null,{"$f":"matrixen!M275","v":"champignons op z'n geheel"}]
[null,null,null,null,null,null,null,null,null,null,null,null,null,null,null,null,null,null,null,null,null,null,null,null,null,null,{"$f":"matrixen!M276","v":"witloof"}]
[null,null,null,null,null,null,null,null,null,null,null,null,null,null,null,null,null,null,null,null,null,null,null,null,null,null,{"$f":"matrixen!M277","v":"erwten"}]
[null,null,null,null,null,null,null,null,null,null,null,null,null,null,null,null,null,null,null,null,null,null,null,null,null,null,{"$f":"matrixen!M278","v":"wortelen"}]
[null,null,null,null,null,null,null,null,null,null,null,null,null,null,null,null,null,null,null,null,null,null,null,null,null,null,{"$f":"matrixen!M279","v":"boontjes (met ui)"}]
[null,null,null,null,null,null,null,null,null,null,null,null,null,null,null,null,null,null,null,null,null,null,null,null,null,null,{"$f":"matrixen!M280","v":"boontjes (met speklardons)"}]
[null,null,null,null,null,null,null,null,null,null,null,null,null,null,null,null,null,null,null,null,null,null,null,null,null,null,{"$f":"matrixen!M281","v":"boontjes (in spekreepjes supplement)"}]
[null,null,null,null,null,null,null,null,null,null,null,null,null,null,null,null,null,null,null,null,null,null,null,null,null,null,{"$f":"matrixen!M282","v":"bloemkool"}]
[null,null,null,null,null,null,null,null,null,null,null,null,null,null,null,null,null,null,null,null,null,null,null,null,null,null,{"$f":"matrixen!M283","v":"Broccoli "}]
[null,null,null,null,null,null,null,null,null,null,null,null,null,null,null,null,null,null,null,null,null,null,null,null,null,null,{"$f":"matrixen!M284","v":"peer in witte wijn (supplement!)"}]
[null,null,null,null,null,null,null,null,null,null,null,null,null,null,null,null,null,null,null,null,null,null,null,null,null,null,{"$f":"matrixen!M285","v":"asperges"}]
[]
[null,null,null,null,null,null,null,null,null,null,null,null,null,null,null,null,null,null,null,null,null,null,null,null,null,null,{"$f":"matrixen!M287","v":"Kies één van de volgende assortimenten"}]
[null,null,null,null,null,null,null,null,null,null,null,null,null,null,null,null,null,null,null,null,null,null,null,null,null,null,{"$f":"matrixen!M288","v":"roerbakgroenten"}]
[null,null,null,null,null,null,null,null,null,null,null,null,null,null,null,null,null,null,null,null,null,null,null,null,null,null,{"$f":"matrixen!M289","v":"gewokte groenten"}]
[null,null,null,null,null,null,null,null,null,null,null,null,null,null,null,null,null,null,null,null,null,null,null,null,null,null,{"$f":"matrixen!M290","v":"koude groenten \"klassiek\""}]
[null,null,null,null,null,null,null,null,null,null,null,null,null,null,null,null,null,null,null,null,null,null,null,null,null,null,{"$f":"matrixen!M291","v":"koude groenten \"modern\""}]
[null,null,null,null,null,null,null,null,null,null,null,null,null,null,null,null,null,null,null,null,null,null,null,null,null,null,{"$f":"matrixen!M292","v":"sla en tomaat (alleen bij kip aan 't spit)"}]
[]
[null,null,null,null,null,null,null,null,null,null,null,null,null,null,null,null,null,null,null,null,null,null,null,null,null,null,{"$f":"matrixen!B66","v":"Nog geen dessert geselecteerd"}]
[null,null,null,null,null,null,null,null,null,null,null,null,null,null,null,null,null,null,null,null,null,null,null,null,null,null,{"$f":"matrixen!B67","v":"Halve gegarneerde maan"}]
[null,null,null,null,null,null,null,null,null,null,null,null,null,null,null,null,null,null,null,null,null,null,null,null,null,null,{"$f":"matrixen!B68","v":"Waaier van nagerechten (gebak, ijs, chocomousse, fruit)"}]
[null,null,null,null,null,null,null,null,null,null,null,null,null,null,null,null,null,null,null,null,null,null,null,null,null,null,{"$f":"matrixen!B69","v":"IJstaart ambachtelijk, speciale vorm, smaak naar keuze"}]
[null,null,null,null,null,null,null,null,null,null,null,null,null,null,null,null,null,null,null,null,null,null,null,null,null,null,{"$f":"matrixen!B70","v":"Trio van witte- melk- en fondantchocolade op amandelbiscuit  "}]
[null,null,null,null,null,null,null,null,null,null,null,null,null,null,null,null,null,null,null,null,null,null,null,null,null,null,{"$f":"matrixen!B71","v":"Stel zelf uw mini dessertbordje samen met 4 dessertjes"}]
[null,null,null,null,null,null,null,null,null,null,null,null,null,null,null,null,null,null,null,null,null,null,null,null,null,null,{"$f":"matrixen!B72","v":"Coupe met vers fruit en verse slagroom."}]
[null,null,null,null,null,null,null,null,null,null,null,null,null,null,null,null,null,null,null,null,null,null,null,null,null,null,{"$f":"matrixen!B73","v":"Aardbeiensoepje met sinaasappel in seizoen"}]
[null,null,null,null,null,null,null,null,null,null,null,null,null,null,null,null,null,null,null,null,null,null,null,null,null,null,{"$f":"matrixen!B74","v":"Coupe met aardbeien en verse slagroom."}]
[null,null,null,null,null,null,null,null,null,null,null,null,null,null,null,null,null,null,null,null,null,null,null,null,null,null,{"$f":"matrixen!B75","v":"Dame blanche"}]
[null,null,null,null,null,null,null,null,null,null,null,null,null,null,null,null,null,null,null,null,null,null,null,null,null,null,{"$f":"matrixen!B76","v":"- frambozentaart"}]
[null,null,null,null,null,null,null,null,null,null,null,null,null,null,null,null,null,null,null,null,null,null,null,null,null,null,{"$f":"matrixen!B77","v":"- progres"}]
[null,null,null,null,null,null,null,null,null,null,null,null,null,null,null,null,null,null,null,null,null,null,null,null,null,null,{"$f":"matrixen!B78","v":"- fruitgebakje"}]
[null,null,null,null,null,null,null,null,null,null,null,null,null,null,null,null,null,null,null,null,null,null,null,null,null,null,{"$f":"matrixen!B79","v":"- biscuit crème fraiche met coulis"}]
[null,null,null,null,null,null,null,null,null,null,null,null,null,null,null,null,null,null,null,null,null,null,null,null,null,null,{"$f":"matrixen!B80","v":"- warme appeltaart met een bolletje ijs"}]
[null,null,null,null,null,null,null,null,null,null,null,null,null,null,null,null,null,null,null,null,null,null,null,null,null,null,{"$f":"matrixen!B81","v":"- zwarte woudtaart"}]
[null,null,null,null,null,null,null,null,null,null,null,null,null,null,null,null,null,null,null,null,null,null,null,null,null,null,{"$f":"matrixen!B82","v":"Sabayon met rood fruit"}]
[null,null,null,null,null,null,null,null,null,null,null,null,null,null,null,null,null,null,null,null,null,null,null,null,null,null,{"$f":"matrixen!B83","v":"Verse ananas met ijs en suikerspin"}]
[null,null,null,null,null,null,null,null,null,null,null,null,null,null,null,null,null,null,null,null,null,null,null,null,null,null,{"$f":"matrixen!B84","v":"Basis dessertbuffet met:"}]
[null,null,null,null,null,null,null,null,null,null,null,null,null,null,null,null,null,null,null,null,null,null,null,null,null,null,{"$f":"matrixen!B85","v":"Uitgebreid dessertbuffet met:"}]
[null,null,null,null,null,null,null,null,null,null,null,null,null,null,null,null,null,null,null,null,null,null,null,null,null,null,{"$f":"matrixen!B86","v":"Uitgebreid en luxueus dessertbuffet met:"}]
[]
[null,null,null,null,null,null,null,null,null,null,null,null,null,null,null,null,null,null,null,null,null,null,null,null,null,null,{"$f":"matrixen!B93","v":"Nog geen keuze gemaakt"}]
[null,null,null,null,null,null,null,null,null,null,null,null,null,null,null,null,null,null,null,null,null,null,null,null,null,null,{"$f":"matrixen!B94","v":"Koffie 3 X bediend"}]
[null,null,null,null,null,null,null,null,null,null,null,null,null,null,null,null,null,null,null,null,null,null,null,null,null,null,{"$f":"matrixen!B95","v":"Koffie 3 X bediend met koekjes"}]
[null,null,null,null,null,null,null,null,null,null,null,null,null,null,null,null,null,null,null,null,null,null,null,null,null,null,{"$f":"matrixen!B96","v":"Koffie 3 X bediend met pralines"}]
[]
[null,null,null,null,null,null,null,null,null,null,null,null,null,null,null,null,null,null,null,null,null,null,null,null,null,null,{"$f":"matrixen!A346","v":"Alle drank na de maaltijd komt op één rekening en wordt door de organisator van het feest betaald"}]
[null,null,null,null,null,null,null,null,null,null,null,null,null,null,null,null,null,null,null,null,null,null,null,null,null,null,{"$f":"matrixen!A347","v":"Elke gast die na de maaltijd een drankje bestelt rekent direct af aan de bar"}]
[null,null,null,null,null,null,null,null,null,null,null,null,null,null,null,null,null,null,null,null,null,null,null,null,null,null,{"$f":"matrixen!A348","v":"Forfait voor drank naar believen (alle bieren en frisdranken van de drankkaart in de zaal) na een maaltijd. pp: "}]
[]
[null,null,null,null,null,null,null,null,null,null,null,null,null,null,null,null,null,null,null,null,null,null,null,null,null,null,{"$f":"matrixen!A374","v":"ja"}]
[null,null,null,null,null,null,null,null,null,null,null,null,null,null,null,null,null,null,null,null,null,null,null,null,null,null,{"$f":"matrixen!A375","v":"nee"}]
[]
[null,null,null,null,null,null,null,null,null,null,null,null,null,null,null,null,null,null,null,null,null,null,null,null,null,null,"geen voorkeur"]
[null,null,null,null,null,null,null,null,null,null,null,null,null,null,null,null,null,null,null,null,null,null,null,null,null,null,"zoveel mogelijk ronde tafels van 6 à 8 personen"]
[null,null,null,null,null,null,null,null,null,null,null,null,null,null,null,null,null,null,null,null,null,null,null,null,null,null,"liever lange tafels ev. In U-vorm of H-vorm."]
[]
[null,null,null,null,null,null,null,null,null,null,null,null,null,null,null,null,null,null,null,null,null,null,null,null,null,null,{"$f":"matrixen!A380","v":"Betaling op de dag zelf (cash of bancontact), u bekomt 2% korting op het totaal"}]
[null,null,null,null,null,null,null,null,null,null,null,null,null,null,null,null,null,null,null,null,null,null,null,null,null,null,{"$f":"matrixen!A381","v":"Storting op BE 48 4631 1391 2127 of op BE 14 3770 7615 9383, min. 7 dagen voor het feest, 2% korting"}]
[null,null,null,null,null,null,null,null,null,null,null,null,null,null,null,null,null,null,null,null,null,null,null,null,null,null,{"$f":"matrixen!A382","v":"Betaling na het feest. Gelieve 40 % voorschot te storten op BE48 4631 1391 2127 of op BE14 3770 7615 9383 . Geen korting."}]
[]
[]
[]
[]
[]
[]
[]
[]
[]
[]
[]
[]
[]
[]
[]
[]
[]
[]
[]
[]
[]
[]
[]
[]
[]
[]
[]
[]
[]
[]
[]
[]
[]
[]
[]
[]
[]
[]
[]
[]
[]
[]
[]
[]
[]
[]
[]
[]
[]
[]
[]
[]
[]
[]
[]
[]
[]
[]
[]
[]
[]
[]
[]
[]
[]
[]
[]
[]
[]
[]
[]
[]
[]
[]
[]
[]
[]
[]
[]
[]
[]
[]
[]
[]
[]
[]
[]
[]
[]
[]
[]
[]
[]
[]
[]
[]
[]
[]
[]
[]
[]
[]
[]
[]
[]
[]
[]
[]
[]
[null,null,null,null,null,null,null,null,null,null,null,null,null,null,null,null,null,null,null,null,null,null,null,null,null,null,{"$f":"matrixen!B216","v":0}]
[null,null,null,null,null,null,null,null,null,null,null,null,null,null,null,null,null,null,null,null,null,null,null,null,null,null,{"$f":"matrixen!B217","v":0}]
[null,null,null,null,null,null,null,null,null,null,null,null,null,null,null,null,null,null,null,null,null,null,null,null,null,null,{"$f":"matrixen!B218","v":0}]
[null,null,null,null,null,null,null,null,null,null,null,null,null,null,null,null,null,null,null,null,null,null,null,null,null,null,{"$f":"matrixen!B219","v":0}]
[null,null,null,null,null,null,null,null,null,null,null,null,null,null,null,null,null,null,null,null,null,null,null,null,null,null,{"$f":"matrixen!B220","v":0}]
[null,null,null,null,null,null,null,null,null,null,null,null,null,null,null,null,null,null,null,null,null,null,null,null,null,null,{"$f":"matrixen!B221","v":0}]
[null,null,null,null,null,null,null,null,null,null,null,null,null,null,null,null,null,null,null,null,null,null,null,null,null,null,{"$f":"matrixen!B222","v":0}]
[null,null,null,null,null,null,null,null,null,null,null,null,null,null,null,null,null,null,null,null,null,null,null,null,null,null,{"$f":"matrixen!B223","v":0}]
[null,null,null,null,null,null,null,null,null,null,null,null,null,null,null,null,null,null,null,null,null,null,null,null,null,null,{"$f":"matrixen!B224","v":0}]
[null,null,null,null,null,null,null,null,null,null,null,null,null,null,null,null,null,null,null,null,null,null,null,null,null,null,{"$f":"matrixen!B225","v":0}]
[null,null,null,null,null,null,null,null,null,null,null,null,null,null,null,null,null,null,null,null,null,null,null,null,null,null,{"$f":"matrixen!B226","v":0}]
[null,null,null,null,null,null,null,null,null,null,null,null,null,null,null,null,null,null,null,null,null,null,null,null,null,null,{"$f":"matrixen!B227","v":0}]

{"sheet":"matrixen","index":1,"n_rows":382,"n_cols":28,"rows_kept":382,"cut":false,"hidden":true,"merged":[]}
[null,"2018-02-23",null,null,null,null,null,null,null,null,null,"lam, zwanen enz..  . Met foto suppl.",null,null,null,15]
[null,null,null,null,null,null,null,null,null,null,null,"Foto op de taart: suppl. € ",null,null,0.7,"per stuk taart en € ",null,10," per foto"]
[]
[null,"Minimaal verbruik feest",null,null,950]
[]
[null,null,null,null,null,null,null,"De naam van alle gerechten wordt niet automatisch aangepast."]
[null,null,null,null,null,null,null,"Sommige moeten manueel aangepast worden!"]
[null,null,null,null,null,null,null,"Op deze pagina staan ze in 't oranje"]
[]
[]
[null,"Maak in dit vak uw keuze voor het aperitief"]
[null,"1 aperitief per persoon",null,null,null,null,null,null,6]
[null,"2 aperitieven per persoon",null,null,null,null,null,null,10]
[null,"Receptie F",null,null,null,null,null,null,15.5,null,"Maak in dit vak uw keuze voor het aperitief","1 aperitief per persoon","2 aperitieven per persoon","Receptie F","Receptie E","Receptie D","Receptie C","Receptie B","Receptie A","Maak in dit vak uw keuze voor het aperitief","1 aperitief per persoon","2 aperitieven per persoon","Receptie F","Receptie E","Receptie D","Receptie C","Receptie B","Receptie A"]
[null,"Receptie E",null,null,null,null,null,null,12.600000000000001,null,null,"1 per persoon,  ","2 per persoon,  ","Zeer uitgebreide receptie","Uitgebreide receptie","Basis receptie.","Zeer uitgebreide receptie","Uitgebreide receptie","Basis receptie.",null,"vrije keuze","vrije keuze","dranken inbegrepen gedurende 2 uur","dranken inbegrepen gedurende 2 uur","dranken inbegrepen gedurende 2 uur","dranken inbegrepen gedurende 2 uur","dranken inbegrepen gedurende 2 uur","dranken inbegrepen gedurende 2 uur"]
[null,"Receptie D",null,null,null,null,null,null,11.100000000000001,null,null,"eventueel tweede wordt","eventueel derde wordt","met 4 aperitiefglaasjes,","met 4 aperitiefglaasjes","Dranken 2 uur inbegrepen.","met 3 koude toastjes en 3 warme ","met 3 koude toastjes en 3 warme ","Dranken 2 uur inbegrepen.",null,"Porto rood","Porto rood","met Schuimwijn van het huis en alle frisdranken en bieren naar believen, ","met Schuimwijn van het huis en alle frisdranken en bieren naar believen, ","met Schuimwijn van het huis en alle frisdranken en bieren naar believen, ","met Schuimwijn van het huis en alle frisdranken en bieren naar believen, ","met Schuimwijn van het huis en alle frisdranken en bieren naar believen, ","met Schuimwijn van het huis en alle frisdranken en bieren naar believen, "]
[null,"Receptie C",null,null,null,null,null,null,15.5,null,null,"direct afgerekend of","direct afgerekend of","een soepje, 2 warme hapjes"," en drank gedurende 2 uur.",null,"hapjes, kleine versnaperingen","hapjes, kleine versnaperingen",null,null,"Martini","Martini","Assortiment van 4 aperitiefglaasjes (samenstelling kan verschillen), een soepje en 2 warme hapjes","Assortiment van 4 aperitiefglaasjes: (samenstelling kan verschillen)","kaasjes, salami, tapenades,","kaasjes, salami,  olijven, nootjes en chips.","kaasjes, salami,  olijven, nootjes en chips.","tapenades"]
[null,"Receptie B",null,null,null,null,null,null,12.600000000000001,null,null,"komt op 1 rekening","komt op 1 rekening","en drank gedurende 2 uur.",null,null,"en drank gedurende 2 uur.",null,null,null,"Kir","Kir","* eendenmousse met rode bessen en koornbloemblaadjes","* eendenmousse met rode bessen en koornbloemblaadjes"," olijven en nootjes en chips","lepeltje gevuld met vismousse","lepeltje gevuld met vismousse","nootjes en chips"]
[null,"Receptie A",null,null,null,null,null,null,10,null,null,null,null,null,null,null,null,null,null,null,"Frisdrank","Frisdrank","* luzerne met gerookte zalm, eitjes van vliegende vis in wasabi","* luzerne met gerookte zalm, eitjes van vliegende vis in wasabi",null,"lepeltje gevuld met vleesmousse","lepeltje gevuld met vleesmousse"]
[null,null,null,null,null,null,null,null,null,null,null,null,null,null,null,null,null,null,null,null,"Bieren","Bieren","* mousse van krab met rode bietscheutjes","* mousse van krab met rode bietscheutjes",null,"3 warme hapjes pp","3 warme hapjes pp"]
[null,null,null,null,null,null,null,null,null,null,null,null,null,null,null,null,null,null,null,null,"nootjes en chips inbegrepen","nootjes en chips inbegrepen","* preischeuten met garnalen en mini tomaat","* preischeuten met garnalen en mini tomaat",null,"* kippenbilletje * toastcupje * garnaal in filodeeg","* kippenbilletje * toastcupje * garnaal in filodeeg"]
[null,null,null,null,null,null,null,null,null,null,null,null,null,null,null,null,null,null,null,null,"TIP:","TIP:","* tomatensoepje en 2 warme hapjes, standaard een garnaal in filodeeg en een kippenvleugeltje",null,null,"3 koude toostjes pp",0]
[null,"Schuimwijn van het huis (reeds inbegrepen)",null,null,null,null,null,null,0,null,null,null,null,null,null,null,null,null,null,null,"Een receptie naar believen","Receptie A is dezelfde prijs.","TIP: Er is veel meer keuze dan de standaard hapjes","TIP: Er is veel meer keuze dan de standaard hapjes",null,"* gerookte zalm * vissalade * grijze garnalen",0]
[null,"Cava",null,null,null,null,null,null,3.25,null,null,null,null,null,null,null,null,null,null,null,"kost evenveel als","Maar daar is de drank naar believen gedurende ","die hierboven vermeld worden. Via deze tool kunt u dit","die hierboven vermeld worden. Via deze tool kunt u dit",null,"Tip: Bovenstaande hapjes kunnen ook gewijzigd worden.","Tip: Bovenstaande hapjes kunnen ook gewijzigd worden."]
[null,"Champagne",null,null,null,null,null,null,7,null,null,null,null,null,null,null,null,null,null,null,"2 aperitieven per persoon.","maximaal 2 uur. En er zijn wat tapenades.","niet aanpassen maar wel als u bij ons langskomt. ","niet aanpassen maar wel als u bij ons langskomt. ",null,"Niet via deze tool maar wel bij reservatie","Niet via deze tool maar wel bij reservatie"]
[null,null,null,null,null,null,null,null,null,null,null,null,null,null,null,null,null,null,null,null,"Selecteer daartoe receptie A!","We komen rond met schuimwijn en ","De keuzemogelijkheden staan gedetailleerd ","De keuzemogelijkheden staan gedetailleerd ",null,"De keuzemogelijkheden staan gedetailleerd ","De keuzemogelijkheden staan gedetailleerd "]
[null,null,null,null,null,null,null,null,null,null,null,null,null,null,null,null,null,null,null,null,0,"fruitsap maar alle bovenstaande dranken","beschreven in het pdf document \"prijslijst\" pagina 9.","beschreven in het pdf document \"prijslijst\" pagina 9.",null,"beschreven in het pdf document \"prijslijst\" pagina 9.","beschreven in het pdf document \"prijslijst\" pagina 9."]
[null,null,null,null,null,null,null,null,null,null,null,null,null,null,null,null,null,null,null,null,0,"kunnen op vraag ook bekomen worden.","U krijgt hier wel een prijsindicatie maar weet dat er meer moglijkheden zijn.","U krijgt hier wel een prijsindicatie maar weet dat er meer moglijkheden zijn.",null,"U krijgt hier wel een prijsindicatie maar weet dat er meer moglijkheden zijn.","U krijgt hier wel een prijsindicatie maar weet dat er meer moglijkheden zijn."]
[]
[null,"Dessertbuffet zonder maaltijd: ",null,null,null,null,null,null,16.5]
[null,"Koffie 3 X bediend",null,null,null,null,null,null,2.5]
[]
[]
[null,"1 aperitief per persoon, vrije keuze",null,null,null,null,null,null,6]
[null,"Pineau des charentes wit",null,null,null,null,null,null,6]
[null,"Maison (basis safari)",null,null,null,null,null,null,6]
[null,"Kir royale",null,null,null,null,null,null,6]
[null,"Sherry dry",null,null,null,null,null,null,6]
[null,"Porto",null,null,null,null,null,null,6]
[null,"Martini (wit/rood)",null,null,null,null,null,null,6]
[null,"Kir",null,null,null,null,null,null,6]
[null,"Schuimwijn",null,null,null,null,null,null,6]
[]
[null,"Maak hier uw keuze voor extra hapjes bij het aperitief"]
[null,"Nootjes, chips en zoutkoekjes zoveel u wenst (gratis)",null,null,null,null,null,null,"gratis"]
[null,"Rauwe groenten (wortel, bloemkool, cocktailsaus) prijs per persoon:",null,null,null,null,null,null,1]
[null,"Warme toostjes per stuk",null,null,null,null,null,null,1]
[null,"Koude toostjes per stuk",null,null,null,null,null,null,1.3]
[null,"aperitiefglaasjes per stuk",null,null,null,null,null,null,2]
[null,"Oesters per stuk warm of koud",null,null,null,null,null,null,2.2999999999999998]
[null,"wachtbordje met vispasteitje",null,null,null,null,null,null,4]
[null,"wachtbordje van reuzentoost met gerookte zalm",null,null,null,null,null,null,4]
[null,"wachtbordje van lauw slaatje met gerookte zalm en scampi's",null,null,null,null,null,null,6]
[]
[]
[]
[]
[null,"Keuze warme toostjes",null,null,"Keuze koude toostjes",null,null,"Keuze aperoglaasjes"]
[null,"(bij reservatie te bepalen)",null,null,"(bij reservatie te bepalen)",null,null,"(bij reservatie te bepalen)"]
[null,"kippenbilletjes",null,null,"toost garnaal koud",null,null,"aperoglaasje eendenmousse"]
[null,"toostcupje",null,null,"toost gerookte zalm koud",null,null,"aperoglaasje gerookte zalm"]
[null,"garnaal in filo",null,null,"toost krabsla koud",null,null,"aperoglaasje mousse van krab"]
[null,"mini croque",null,null,"toost eendenpastei koud",null,null,"aperoglaasje tomaat / garnaal"]
[null,"scampi enz….",null,null,null,null,null,"en nog veel mogelijkheden"]
[]
[null,"Nog geen dessert geselecteerd"]
[null,"Halve gegarneerde maan",null,null,null,null,null,null,8.8000000000000007,null,"Een echte smaakbom van chocolade, rode vruchten en basilicum"]
[null,"Waaier van nagerechten (gebak, ijs, chocomousse, fruit)",null,null,null,null,null,null,6,null,"Zeer royaal bord met gebak, ijs, chocomousse en fruit"]
[null,"IJstaart ambachtelijk, speciale vorm, smaak naar keuze",null,null,null,null,null,null,5.3,null,"Ijstaart met foto: 15 euro per foto (min personen). Speciale garnituren mits meerprijs mogelijk."]
[null,"Trio van witte- melk- en fondantchocolade op amandelbiscuit  ",null,null,null,null,null,null,5.9]
[null,"Stel zelf uw mini dessertbordje samen met 4 dessertjes",null,null,null,null,null,null,3.9,null,"Roomijs en/of Bruine chocolademousse en/of Pasteis de nata en/of "]
[null,"Coupe met vers fruit en verse slagroom.",null,null,null,null,null,null,3.9,null,"Vanilleijs, vers fruit en verse slagroom"]
[null,"Aardbeiensoepje met sinaasappel in seizoen",null,null,null,null,null,null,3.9,null,"Sinaasappelsap met grand marnier en daarin vers gesneden aardbeien (alleen in seizoen)"]
[null,"Coupe met aardbeien en verse slagroom.",null,null,null,null,null,null,3.9,null,"Vanilleijs, verse aardbeien en verse slagroom"]
[null,"Dame blanche",null,null,null,null,null,null,3.9,null,"Vanilleijs, verse slagroom,warme chocoladesaus."]
[null,"- frambozentaart",null,null,null,null,null,null,5.75,null,"De lekkerste van alle gebakjes."]
[null,"- progres",null,null,null,null,null,null,5.75,null,"Een klassieker."]
[null,"- fruitgebakje",null,null,null,null,null,null,3.9,null,"Klein maar fijn gebakje"]
[null,"- biscuit crème fraiche met coulis",null,null,null,null,null,null,3.9,null,"Vrij groot stuk met slagroom. Foto op de taart: suppl. € 0,7 per stuk taart en € 10 per foto "]
[null,"- warme appeltaart met een bolletje ijs",null,null,null,null,null,null,3.9,null,"Hier heb je zowel gebak als vanilleijs."]
[null,"- zwarte woudtaart",null,null,null,null,null,null,5.75,null,"Biscuit met cacaopoeder in een tasje."]
[null,"Sabayon met rood fruit",null,null,null,null,null,null,3.9,null,"Sabayon, fruit en ijs"]
[null,"Verse ananas met ijs en suikerspin",null,null,null,null,null,null,3.9]
[null,"Basis dessertbuffet met:",null,null,null,null,null,null,10,null,"vers fruit, verschillende soorten sorbet, chocolademousse, roomijs","variatie van miserable, javanais, pasteis de nata, roomsoes, speculoostaart,","De samenstelling van het buffet kan verschillen, naargelang de grootte van de groep",null,null,"Belangrijk: De prijs van dit dessertbuffet geldt alleen indien voorafgegaan door een maaltijd!!"]
[null,"Uitgebreid dessertbuffet met:",null,null,null,null,null,null,12,null,"vers fruit, verschillende soorten sorbet, chocolademousse, roomijs","variatie van miserable, javanais, pasteis de nata, roomsoes, speculoostaart,","De samenstelling van het buffet kan verschillen, naargelang de grootte van de groep","assortiment van mini-bavarois (framboos-passie-zwarte woud-pistache-chocolade praliné)",null,"Belangrijk: De prijs van dit dessertbuffet geldt alleen indien voorafgegaan door een maaltijd!!"]
[null,"Uitgebreid en luxueus dessertbuffet met:",null,null,null,null,null,null,14,null,"vers fruit, verschillende soorten sorbet, chocolademousse, roomijs","variatie van miserable, javanais, pasteis de nata, roomsoes, speculoostaart,","De samenstelling van het buffet kan verschillen, naargelang de grootte van de groep","assortiment van mini-bavarois (framboos-passie-zwarte woud-pistache-chocolade praliné)","dessertglaasjes (framboos-amandel - trio chocolade - mango-caramel - chocolade praliné)","Belangrijk: De prijs van dit dessertbuffet geldt alleen indien voorafgegaan door een maaltijd!!"]
[]
[]
[]
[]
[]
[]
[null,"Nog geen keuze gemaakt"]
[null,"Koffie 3 X bediend",null,null,null,null,null,"€ ",2.5]
[null,"Koffie 3 X bediend met koekjes",null,null,null,null,null,"€ ",3.35]
[null,"Koffie 3 X bediend met pralines",null,null,null,null,null,"€ ",3.9]
[]
[]
[]
[]
["Koude voorgerechten"]
["Maak hier uw keuze indien u een koud voorgerecht wenst"]
["½ kreeft “en belle vue”",null,null,null,null,null,null,null,"€ ",16]
["Foie gras op 2 wijzen (als pastei en zacht gebakken lever)",null,null,null,null,null,null,null,"€ ",13]
["Verse ganzenleverpastei van het huis met Xeresgelei",null,null,null,null,null,null,null,"€ ",12]
["Gek slaatje van de chef met grijze garnalen, gerookte zalm en foie gras",null,null,null,null,null,null,null,"€ ",12]
["Salade van verse grijze gepelde garnalen",null,null,null,null,null,null,null,"€ ",13]
["Lauw slaatje met scampi's, kwartelei en gerookte zalm",null,null,null,null,null,null,null,"€ ",10]
["Gerookte zalm xxxxxxxxx",null,null,null,null,null,null,null,"€ ",10]
["Meloen met parmaham",null,null,null,null,null,null,null,"€ ",10]
["Gemarineerde zalm met asperges, dille en een rivierkreeftje",null,null,null,null,null,null,null,"€ ",10]
["Zomers slaatje met gebakken kippereepjes + kalfszwezeriken",null,null,null,null,null,null,null,"€ ",13]
["Frivool slaatje van gerookte zalm, St Jacobsvruchten en gepocheerde zalm ",null,null,null,null,null,null,null,"€ ",13]
["Zomers slaatje met gebakken kippereepjes",null,null,null,null,null,null,null,"€ ",10]
["Bordje met  pandalusgarnalen en cocktailsaus",null,null,null,null,null,null,null,"€ ",10]
["Gegarneerde vispastei",null,null,null,null,null,null,null,"€ ",10]
["Tomaat Mozarella",null,null,null,null,null,null,null,"€ ",10]
["Gepocheerde zalm op frivool slaatje met cocktailsaus",null,null,null,null,null,null,null,"€ ",10]
["Duo van gerookte zalm en gepocheerde zalm",null,null,null,null,null,null,null,"€ ",10]
[]
[]
[]
["Huiswijn, bieren en frisdranken als forfait",null,null,null,null,null,null,null,"€ ",1.5,"Hier steeds de prijs van de huiswijn typen"]
["Domaine Joel Delauny Touraine  en/of Château Reynier, Bordeaux superieur,  bieren en frisdranken",null,null,null,null,null,null,null,"€ ",3]
[]
[]
[]
[]
[]
[]
[]
[]
[]
[]
["XI Soepen",null,"Er is steeds 1 broodje inbegrepen"]
[null,null,"   * = geschikt voor vegetariërs"]
[]
["Maak hier uw keuze indien u soep wenst"]
["Schaaldierenroomsoep",null,null,null,null,null,null,"€ ",10]
["Noordzeeketeltje",null,null,null,null,null,null,"€ ",6]
["Romig groentesoepje , geparfumeerd met gerookte kipperfilets",null,null,null,null,null,null,"€ ",6]
["Ossenstaartsoep met verse stukjes ossenstaart",null,null,null,null,null,null,"€ ",6]
["Komkommerroomsoep *",null,null,null,null,null,null,"€ ",4]
["Aspergeroomsoep met koornbloemblaadjes *",null,null,null,null,null,null,"€ ",4]
["Aalsterse soep met toostje onder kaas (= ajuinsoep) *",null,null,null,null,null,null,"€ ",4]
["Pompoensoep (sept. okt. nov.) *",null,null,null,null,null,null,"€ ",4]
["Kervelroomsoep met gerookte eend",null,null,null,null,null,null,"€ ",4]
["Preiroomsoep met broccoligarnituur en gebakken spekjes",null,null,null,null,null,null,"€ ",4]
["Selderroomsoep *",null,null,null,null,null,null,"€ ",4]
["Tomatenroomsoep *",null,null,null,null,null,null,"€ ",4]
["Soepje van boschampignons en gerookte paling",null,null,null,null,null,null,"€ ",4]
["Preisoep met gevogeltereepjes",null,null,null,null,null,null,"€ ",4]
["Wortelsoep *",null,null,null,null,null,null,"€ ",4]
["Agnes Sorel-roomsoep met shiitakes",null,null,null,null,null,null,"€ ",4]
[]
[]
[]
[]
[]
[]
[]
[]
[]
[]
[]
[]
[]
[]
[]
[]
[]
[]
["Alleen de beste vis wordt geselecteerd voor onze gerechten !!!"]
[]
["XII Warme voorgerechten"]
[]
["Alle hiernavolgende visgerechten zijn 99,99% zonder graten !"]
["Maak hier uw keuze indien u een warm voorgerecht wenst",null,null,null,null,null,null,null,null,null,null,null,null,null,"Scampi's \"maison\" (in kreeftesaus met kerrie)"]
["Scampi's \"maison\" (in kreeftesaus met kerrie)",null,null,null,null,null,null,null,"€ ",11,null,null,null,null,"Gevarieerd slaatje met gebakken kalfszwezeriken"]
["Gevarieerd slaatje met gebakken kalfszwezeriken",null,null,null,null,null,null,null,"€ ",16,null,null,null,null,"Met zalm gevulde tongfilets in gekruide roomsaus"]
["Met zalm gevulde tongfilets in gekruide roomsaus",null,null,null,null,null,null,null,"€ ",13,null,null,null,null,0]
["Rolletje van zalm en tong, noordzeegarnalen en een langoustine",null,null,null,null,null,null,null,"€ ",16,null,null,null,null,"Rolletje van zalm en tong, noordzeegarnalen en een langoustine"]
["Schelp met zalm-victoria-garnalen en fijne groenten",null,null,null,null,null,null,null,"€ ",12,null,null,null,null,"Schelp met zalm-victoria-garnalen en fijne groenten"]
["Groenlandse heilbotfilet in kreeftenroomsaus en een rivierkreeftje",null,null,null,null,null,null,null,"€ ",10,null,null,null,null,"Groenlandse heilbotfilet in kreeftenroomsaus en een rivierkreeftje"]
["Duo van Groenlandse heilbot en scampi's met een snuifje saffraan",null,null,null,null,null,null,null,"€ ",10]
["Duo van Groenlandse heilbot en St. Jacobsvruchten",null,null,null,null,null,null,null,null,13]
["Bladerdeeggebakje gevuld met kip en kalfszwezeriken",null,null,null,null,null,null,null,"€ ",13]
["Bladerdeeggebakje gevuld met kip",null,null,null,null,null,null,null,"€ ",10]
["Victoriabaarsfilet in preiroomsaus",null,null,null,null,null,null,null,"€ ",10]
["Witte zalmfilet in gekruide roomsaus of in kreeftenroomsaus",null,null,null,null,null,null,null,"€ ",10]
["Schelpje met noordzeevis en fijne groenten",null,null,null,null,null,null,null,"€ ",10]
["Gepocheerde verse roze zalm met bieslooksaus",null,null,null,null,null,null,null,"€ ",10]
["Halve aardappel met noordzeevis en lauwe grijze garnalen ",null,null,null,null,null,null,null,"€ ",10]
[]
[]
[]
[]
["Selecteer hier uw drank bij het warm voorgerecht (zoniet wordt standaard de huiswijn gekozen)",null,null,null,null,null,null,null,null,1.5,"Hier steeds de prijs van de huiswijn typen"]
["Huiswijn, bieren en frisdranken als forfait",null,null,null,null,null,null,null,"€ ",1.5]
["De Kaapse leeuw  Chenin blanc (wit), Chat. Reynier bordeaux superieur (rood)  en andere drank als forfait, pp:",null,null,null,null,null,null,null,"€ ",3]
[]
[]
[]
["Maak hier uw keuze indien u een bolletje sorbet als tussengerecht wenst. Kan ook voor het warm voorgerecht gegeven worden."]
["Bolletje sorbet limoen",null,null,null,null,null,null,null,null,4]
["Bolletje sorbet framboos",null,null,null,null,null,null,null,null,4]
[]
[]
[]
[]
[]
["Supplement hoofdschotel zonder soep:",null,null,null,null,null,null,null,null,3.5]
[null,"niet voor:",null,"Jumbo mosselen naar believen"]
[null,null,null,"Gepocheerde zeetong met seizoengarnituur 3/kg"]
[null,null,null,"Drieluik van vis roze zalm, groenlandse heilbot en tongfilet in kreeftroom"]
[null,null,null,"Ribbetjes 1 portie"]
[null,null,null,"Kip aan het spit 1 portie"]
[null,null,null,"Varkens côte à l'os"]
[]
[]
["In dit kader vindt u de visgerechten als hoofdschotel  *** betekent 3 x bediend, anders 1 portie",null,null,null,null,null,null,null,null,null,null,null,null,null,null,null,null,null,null,null,null,null,null,"Nog geen saus geselecteerd"]
["Jumbo mosselen naar believen",null,null,null,null,null,null,"dagprijs +","€ ",30,null,null,"geen saus nodig",null,null,null,null,null,null,null,null,null,null,"kreeftsaus met groentebrunoise",null,null,"Een zacht sausje op basis van kreeft met fijne groenteblokjes"]
["Gepocheerde zeetong met seizoengarnituur 3/kg",null,null,null,null,null,null,null,"€ ",30,null,null,"kreeftsaus met groentebrunoise","garnalenroomsaus","kreeftsaus zonder groenten","saffraansaus","preiroomsaus","mosterdsausje met gefruite prei","bieslooksaus",null,null,null,null,"gekruide roomsaus",null,null,"Zachte roomsaus met peterselie en bieslook. Niet pikant"]
["Drieluik van vis roze zalm, groenlandse heilbot en tongfilet in kreeftroom",null,null,null,null,null,null,null,"€ ",29,null,null,"kreeftsaus met groentebrunoise","gekruide roomsaus","garnalenroomsaus","kreeftsaus zonder groenten","saffraansaus","preiroomsaus",null,null,null,null,null,"garnalenroomsaus",null,null,"Sausje op basis van bisque met grijze garnalen"]
["Groenlandse heilbotfilet in kreeftenroomsaus met groenten***",null,null,null,null,null,null,null,"€ ",25.7,null,null,"kreeftsaus met groentebrunoise","gekruide roomsaus","garnalenroomsaus","kreeftsaus zonder groenten","saffraansaus","preiroomsaus","bieslooksaus",null,null,null,null,"kreeftsaus zonder groenten",null,null,"Een zacht sausje op basis van kreeft"]
["Witte zalmfilet in gekruide roomsaus***",null,null,null,null,null,null,null,"€ ",25.7,null,null,"kreeftsaus met groentebrunoise","gekruide roomsaus","mosterdsausje met gefruite prei","bieslooksaus",null,null,null,null,null,null,null,"saffraansaus",null,null,"Lichtgele saus op basis van visbouillon geparfumeerd met saffraan"]
["Victoriabaarsfilet in preiroomsaus***",null,null,null,null,null,null,null,"€ ",25.7,null,null,"gekruide roomsaus","saffraansaus","preiroomsaus","bieslooksaus",null,null,null,null,null,null,null,"preiroomsaus",null,null,"Witte saus op basis van visbouillon met stukjes prei"]
["Gepocheerde zalm ***",null,null,null,null,null,null,null,"€ ",25.7,null,null,"kreeftsaus met groentebrunoise","gekruide roomsaus","saffraansaus","bieslooksaus",null,null,null,null,null,null,null,"mosterdsausje met gefruite prei",null,null,"Sausje op basis van visvouillon met een lichte smaaktoets van mosterd. Vergezeld van gefrituurde prei-julienne"]
["In dit kader vindt u de vleesgerechten als hoofdschotel ",null,null,null,null,null,null,null,null,null,null,null,0,0,0,0,0,0,0,0,0,0,null,"bieslooksaus",null,null,"Zachte roomsaus met  bieslook. Niet pikant"]
["Filet pur (Holstein)",null,null,null,null,null,null,null,"€ ",30,null,null,"bearnaise","romige portosaus","pepersaus","grootmoeders wijze","mosterd en look","bordelaise","jagerssaus","champignonroomsaus",null,null,null,"bearnaise",null,null,"Klassieke saus met lichtzure smaak van dragonazijn, afgewerkt met verse kervel"]
["Buffet met côte à l’os, 3 sausen en roerbakgroenten",null,null,null,null,null,null,null,"€ ",28,null,null,"bearnaise","romige portosaus","pepersaus","grootmoeders wijze","mosterd en look","bordelaise","jagerssaus","champignonroomsaus",null,null,null,"romige portosaus",null,null,"Onze klassieker. Lichtbruine roomsaus, past bij ongeveer elk vleesgerecht"]
["Lamsfilet",null,null,null,null,null,null,null,"€ ",30,null,null,"romige portosaus","pepersaus","mosterd en look",null,null,null,null,null,null,null,null,"pepersaus",null,null,"Lichtbruine saus met subtiele pepertoets, niet te pikant"]
["Kalfsgebraad",null,null,null,null,null,null,null,"€ ",30,null,null,"romige portosaus","pepersaus","grootmoeders wijze","bordelaise","jagerssaus","champignonroomsaus",null,null,null,null,null,"grootmoeders wijze",null,null,"Lichtbruine saus met ui, spek en champignons. Het spek heeft een overheersende smaaktoets"]
["Rosbief (Belgisch wit-blauw)",null,null,null,null,null,null,null,"€ ",27,null,null,"bearnaise","romige portosaus","pepersaus","grootmoeders wijze","mosterd en look","bordelaise","jagerssaus","champignonroomsaus",null,null,null,"blackwell",null,null,"Lichtbruine saus met smaaktoets van pickles"]
["Variatie van vlees  roastbeef,  varkensfilet en lamsnootjes",null,null,null,null,null,null,null,"€ ",27,null,null,"romige portosaus","pepersaus","mosterd en look","bordelaise","jagerssaus","champignonroomsaus",null,null,null,null,null,"mosterd en look",null,null,"Lichtbruine saus met smaaktoets van mosterd en look"]
["Varkenshaasjes",null,null,null,null,null,null,null,"€ ",27,null,null,"romige portosaus","pepersaus","grootmoeders wijze","blackwell","mosterd en look","bordelaise","jagerssaus","champignonroomsaus",null,null,null,"fijne groentesaus",null,null,"Witte saus met met fijne groenteblokjes"]
["Varkens côte à l'os",null,null,null,null,null,null,null,"€ ",25.7,null,null,"romige portosaus","pepersaus","grootmoeders wijze","mosterd en look","jagerssaus","champignonroomsaus",null,null,null,null,null,"bordelaise",null,null,"Rode wijnsaus met uiblokjes"]
["Varkensgebraad ",null,null,null,null,null,null,null,"€ ",25.7,null,null,"romige portosaus","pepersaus","grootmoeders wijze","blackwell","mosterd en look","bordelaise","fijne kruidensaus","jagerssaus","champignonroomsaus",null,null,"fijne kruidensaus",null,null,"Witte saus met peterselie en bieslook, niet pikant"]
["Duivelsgebraad",null,null,null,null,null,null,null,"€ ",25.7,null,null,"witte mosterdsaus","jagerssaus","champignonroomsaus",null,null,null,null,null,null,null,null,"witte mosterdsaus",null,null,"Witte saus met smaaktoets van mosterd"]
["Ardeens gebraad",null,null,null,null,null,null,null,"€ ",25.7,null,null,"romige portosaus","pepersaus","jagerssaus","champignonroomsaus",null,null,null,null,null,null,null,"jagerssaus",null,null,"Lichtbruine saus met uiblokjes"]
["Kasselrib ",null,null,null,null,null,null,null,"€ ",25.7,null,null,"romige portosaus","pepersaus","jagerssaus","champignonroomsaus",null,null,null,null,null,null,null,"champignonroomsaus",null,null,"Klassieke saus met champignons"]
["Ribbetjes 1 portie",null,null,null,null,null,null,null,"€ ",25.7,null,null,"koude sausjes inbegrepen",null,null,null,null,null,null,null,null,null,null,"koude sausjes inbegrepen"]
[null,null,null,null,null,null,null,null,null,null,null,null,null,null,null,null,null,null,null,null,null,null,null,"geen saus voorzien"]
[null,null,null,null,null,null,null,null,null,null,null,null,null,null,null,null,null,null,null,null,null,null,null,"geen saus nodig"]
[null,null,null,null,null,null,null,null,null,null,null,null,null,null,null,null,null,null,null,null,null,null,null,"sinaasappelsaus",null,null,"Zoet sausje op basis van sinaasappelsap"]
["Er wordt rondgekomen tot iedereen voldoende heeft, tenzij anders vermeld.",null,null,null,null,null,null,null,null,null,null,null,null,null,null,null,null,null,null,null,null,null,null,0,null,null,0]
["Er is ook steeds een passende garnituur inbegrepen"]
["De aardappelbereiding en de groenten zijn altijd naar believen."]
["In dit kader vindt u gevogelte als hoofdschotel "]
["Eendenborstfilet",null,null,null,null,null,null,null,"€ ",30,null,null,"romige portosaus","pepersaus","sinaasappelsaus"]
["Kalkoen verrijkt met verse kreeft",null,null,null,null,null,null,null,"€ ",30,null,null,"kreeftsaus zonder groenten"]
["Parelhoen",null,null,null,null,null,null,null,"€ ",25.7,null,null,"romige portosaus","pepersaus","blackwell","mosterd en look","bordelaise","fijne kruidensaus","witte mosterdsaus","jagerssaus","champignonroomsaus","sinaasappelsaus"]
["Kippenfilet met grijze garnalen ",null,null,null,null,null,null,null,"€ ",25.7,null,null,"kreeftsaus zonder groenten"]
["Kalkoenfilet",null,null,null,null,null,null,null,null,25.7,null,null,"kreeftsaus met groentebrunoise","romige portosaus","pepersaus","mosterd en look","fijne groentesaus","fijne kruidensaus","champignonroomsaus","sinaasappelsaus"]
["Kippenfilet",null,null,null,null,null,null,null,"€ ",25.7,null,null,"kreeftsaus met groentebrunoise","romige portosaus","pepersaus","fijne groentesaus","fijne kruidensaus","witte mosterdsaus","champignonroomsaus"]
["Kip aan het spit 1 portie",null,null,null,null,null,null,null,"€ ",20,null,null,"geen saus voorzien"]
[]
["Selecteer hier uw drank bij het hoofdgerecht (zoniet wordt standaard de huiswijn gekozen)",null,null,null,null,null,null,null,null,2.8,"Hier steeds de prijs van de huiswijn typen"]
["Huiswijn, bieren en frisdranken als forfait",null,null,null,null,null,null,null,"€ ",2.8,null,null,"Nog geen aardappelbereiding geselecteerd"]
["Domaine Joel Delauny Touraine  en/of Château Reynier, Bordeaux superieur,  bieren en frisdranken",null,null,null,null,null,null,null,"€ ",7,null,null,"kroketjes",null,null,"Meest populair, past uitstekend bij gevogelte en vlees"]
[null,null,null,null,null,null,null,null,null,null,null,null,"friet",null,null,"Past bij nagenoeg alles, zelf vis"]
[null,null,null,null,null,null,null,null,null,null,null,null,"roomaardappel",null,null,"schijfjes aardappel bereid in room met fijne kruiden. Uitstekend bij vleesgerechten"]
["Indien uw feest cash betaald wordt en op de dag zelf dan krijgt u een korting van 2 % !",null,null,null,null,null,null,null,null,null,null,null,"aardappel in de pel",null,null,"Gekookte aardappel in de pel met lookboter opgediend"]
[null,null,null,null,null,null,null,null,null,null,null,null,"ovenaardappel",null,null,"Gekookte aadappel in de pel, in twee gesneden en opgespoten met puree"]
[null,null,null,null,null,null,null,null,null,null,null,null,"trio van puree",null,null,"Dit vervangt ook de groenten. Aardappelpuree, broccolipuree en wortelpuree in een rösti bootje."]
[null,null,null,null,null,null,null,null,null,null,null,null,"rijst",null,null,"Lekker bij visgerechten."]
[null,null,null,null,null,null,null,null,null,null,null,null,"koude aardappelbrunoise",null,null,"Koude aardappelblokjes met pittige vinaigrette"]
[null,null,null,null,null,null,null,null,null,null,null,null,"krielaardappeltjes",null,null,"Kleine aardappeltjes in de oven bereid met spekreepjes"]
[null,null,null,null,null,null,null,null,null,null,null,null,"puree",null,null,"Klassieke aardappelpuree in de oven verwarmd als duchesse"]
[null,null,null,null,null,null,null,null,null,null,null,null,"tijmaardappelen",null,null,"Kleine aardappelblokjes gefrituurd en geparfumeerd met tijm"]
[null,null,null,null,null,null,null,null,null,null,null,null,"rozemarijnaardappelen",null,null,"gebakken aardappelen geparfumeerd met rozemarijn"]
[]
[]
[null,null,null,null,null,null,null,null,null,null,null,null,"Kies hier 4 verschillende warme groenten"]
[null,null,null,null,null,null,null,null,null,null,null,null,"champignons op z'n geheel"]
[null,null,null,null,null,null,null,null,null,null,null,null,"witloof"]
[null,null,null,null,null,null,null,null,null,null,null,null,"erwten"]
[null,null,null,null,null,null,null,null,null,null,null,null,"wortelen"]
[null,null,null,null,null,null,null,null,null,null,null,null,"boontjes (met ui)"]
[null,null,null,null,null,null,null,null,null,null,null,null,"boontjes (met speklardons)"]
[null,null,null,null,null,null,null,null,null,null,null,null,"boontjes (in spekreepjes supplement)",null,null,null,0.7]
[null,null,null,null,null,null,null,null,null,null,null,null,"bloemkool"]
[null,null,null,null,null,null,null,null,null,null,null,null,"Broccoli "]
[null,null,null,null,null,null,null,null,null,null,null,null,"peer in witte wijn (supplement!)",null,null,null,1.4]
[null,null,null,null,null,null,null,null,null,null,null,null,"asperges"]
[null,null,null,"Maak hier uw keuze"]
[null,"Belegd met:",null,"parmaham",null,null,"€ ",4.5,null,null,null,null,"Kies één van de volgende assortimenten"]
[null,null,null,"grijze garnalen",null,null,"€ ",4.2,null,null,null,null,"roerbakgroenten",null,null,null,null,"Dit is een lekkere mengeling van bloemkool, boontjes, broccoli, wortelen. Geen afwijking mogelijk."]
[null,null,null,"gerookte zalm",null,null,"€ ",2.5,null,null,null,null,"gewokte groenten",null,null,null,null,"Dit zijn mange-touts,  babymais,  mini shi takes,  paprika, oesterzwammen, broccoli, wortelen,  sojascheuten. Hier is geen afwijking mogelijk."]
[null,null,null,"zalmsalade",null,null,"€ ",2.5,null,null,null,null,"koude groenten \"klassiek\"",null,null,null,null,"Sla, tomaat, komkommer, mais, rode biet, geraspte wortel, eventueel radijsjes"]
[null,null,null,"gerookte ham",null,null,"€ ",2.5,null,null,null,null,"koude groenten \"modern\"",null,null,null,null,"Sla, gedroogde tomaat in olie, kwarteleieren (1/2)pp, geraspte wortel, mais, rode biet, vinaigrette."]
[null,null,null,"vissla",null,null,"€ ",2.5,null,null,null,null,"sla en tomaat (alleen bij kip aan 't spit)"]
[null," ",null,"kaas",null,null,"€ ",2.5]
[null,null,null,"gekookte ham",null,null,"€ ",2.5]
[null,null,null,"américain préparé",null,null,"€ ",2.5]
[null,null,null,"krabsla",null,null,"€ ",2.5]
[null,null,null,"kipsla",null,null,"€ ",2.5]
[]
[]
[]
[]
["XIX De groenten"]
[]
["Bij de hoofdschotels zijn steeds 4 warme groenten inbegrepen of een zestal koude."]
[]
[]
["Warme groenten keuze uit:"]
[]
["Worteltjes, erwtjes, boontjes*, bloemkool, broccoli, champignons, asperges, witloof…"]
[]
[]
["*","boontjes in spek gewikkeld suppl. ",null,null,null,0.7,"€ pp"]
["*","boontjes aangestoofd met spek en/ of ui, geen toeslag"]
["*","peer in witte wijn suppl",null,null,null,1.4,"€ pp"]
[]
["Indien u geen voorkeur heeft, dan maken wij graag een keuze voor u."]
["Assortiment koude groenten \"klassiek\":"]
[]
["Sla, tomaat, komkommer, mais, rode biet, geraspte wortel, eventueel radijsjes"]
[]
["Assortiment koude groenten \"modern\":"]
[]
["sla"," kwarteleieren (1/2)pp",null,null," mais (1/10 p)",null,null,null,"vinaigrette"]
[" gedroogde tomaat in olie",null,null,null," geraspte wortel",null,"rode biet"]
[]
["Nieuw: Suggestie: trio van puree (vervangt aardappelbereiding en groenten)"]
["De drie soorten puree zijn : aardappelpuree, broccolipuree en wortelpuree."]
[]
[]
["roerbakgroenten:",null,"Bloemkool, boontjes, broccoli, wortelen."]
[null,null,"geen afwijking mogelijk."]
[]
[]
[]
[]
[]
[]
[]
[]
[]
[]
[]
["sla en tomaat."]
[]
[]
["Alle drank na de maaltijd komt op één rekening en wordt door de organisator van het feest betaald",null,null,null,null,null,null,null,null,null,null,null,null,null,null,"één rekening"]
["Elke gast die na de maaltijd een drankje bestelt rekent direct af aan de bar",null,null,null,null,null,null,null,null,null,null,null,null,null,null,"direct afrekenen"]
["Forfait voor drank naar believen (alle bieren en frisdranken van de drankkaart in de zaal) na een maaltijd. pp: ",null,null,null,null,null,null,null,null,null,null,null,null,null,16,16,"alletwee de prijzen nodig!"]
["Indien  er geen volwaardige maaltijd wordt genomen, dienen er minstens 4 belegde broodjes genomen te worden en verhoogt het drankforfait tot € 28,00 ",null,null,null,null,null,null,null,null,null,null,null,null,null,null,28]
["'s middags tot 21 u - 's avonds onbeperkt. Let op! Artikel 8 van de verkoopsvoorwaarden (zie laatste bladzijde) kan hier van toepassing zijn !!!!"]
[]
["Neem contact op met de zaakvoerder op tel nr 0475/618058",null,null,null,null,null,null,null,null,null,null,null,null,null,null,"x"]
["om hier zeker geen misverstanden over te hebben!"]
[]
[]
["Verbruik van DJ  ten laste van de klant"]
[]
["Voor onze vegetarische klanten:"]
[]
["- Voor onze vegetarische klanten bereiden wij graag een aparte schotel. "]
["Wij vragen wel met aandrang om op voorhand te melden als er vegetariërs zijn."]
["Zij eten mee aan de prijs van de rest van de groep."]
[]
[]
[]
[]
["Mensen met een speciaal dieet:"]
[]
["Wij houden rekening met speciale wensen van mensen die een dieet volgen, "]
["maar alleen indien op voorhand gemeld. "]
[]
["Halal kan ook, onder toezicht van een moslim bereid."]
[]
["ja"]
["nee"]
[]
[]
[]
[]
["Betaling op de dag zelf (cash of bancontact), u bekomt 2% korting op het totaal"]
["Storting op BE 48 4631 1391 2127 of op BE 14 3770 7615 9383, min. 7 dagen voor het feest, 2% korting"]
["Betaling na het feest. Gelieve 40 % voorschot te storten op BE48 4631 1391 2127 of op BE14 3770 7615 9383 . Geen korting."]

{"sheet":"Algemene verkoopsvoorwaarden","index":2,"n_rows":63,"n_cols":13,"rows_kept":63,"cut":false,"hidden":false,"merged":[]}
[null,"Algemene verkoopsvoorwaarden:"]
[null,"1) Onze facturen zijn contant te betalen bij levering van de goederen. Bijgevolg zal in geval van laattijdige betaling"]
[null,"van rechtswege en zonder voorafgaande ingebrekestelling een intrest aangerekend worden van 12% per jaar op de "]
[null,"bedragen, verschuldigd acht dagen na de vervaldag van de facturen. Tevens zal bij gebrek aan betaling na "]
[null,"aanmaning bij gewone brief, het verschuldigde bedrag van rechtswege verhoogd worden met een forfaitaire"]
[null,"vergoeding van 12 % met een minimum van € 50  voor bijkomende administratieve kosten, debiteurenbewaking "]
[null,"en commerciële stoornissen. Wij behouden ons het recht voor op elk moment de leveringen te staken. Elke "]
[null,"klacht over de kwaliteit van de geleverde goederen moet uiterlijk 24 uur na de levering worden overgemaakt. "]
[null,"Klachten in verband met facturatie kunnen slechts in aanmerking worden genomen zo zij binnen de acht "]
[null,"dagen na ontvangst van de goederen bij aangetekende brief worden meegedeeld. In geval van betwisting zijn "]
[null,"uitsluitend de rechtbanken van Kortrijk bevoegd. De leveringen  geschieden op risico van de bestemmeling. Er "]
[null,"wordt uitdrukkelijk overeengekomen dat de klant door het plaatsen van een bestelling onze algemene "]
[null,"verkoopsvoorwaarden erkent. Elke wijziging hieraan moet voorafgaandelijk in een schriftelijk akkoord worden "]
[null,"vastgelegd."]
[]
[null,"2) Annulatie dient schriftelijk en gedateerd te geschieden. "]
[null,"In geval van annulatie minder dan 60 dagen voor de activiteit blijft het voorschot eigendom van het Katelijnenhof."]
[null,"Voor annulatie minder dan 10 dagen voor de activiteit is de klant in alle gevallen verplicht 35 % van de reservatie-"]
[null,"waarde van de gehele manifestatie te vergoeden."]
[null,"Bij annulatie minder dan 5 dagen voor  de activiteit is de klant in alle gevallen verplicht de reservatie waarde van de "]
[null,"gehele manifestatie te vergoeden."]
[]
[null,"3) Iedere levering van dranken, voedingswaren of diensten in de  zalen is uitsluitend voorbehouden aan het "]
[null,"Katelijnenhof, tenzij er een andere schriftelijke overeenkomst is."]
[]
[null,"4) De klant is eraan gehouden voor iedere dansavond met groot orkest een aanvraag tot toelating in te dienen bij "]
[null,"SABAM, Rijselsestraat 51, 8500 Kortrijk, Tel : 056/210738 en alle kosten voortvloeiend uit deze aanvraag te "]
[null,"dragen.  Voor een gewone disc-jockey betalen wij jaarlijks een vaste bijdrage. Het verbruik (drank en voeding) "]
[null,"van de DJ is ten laste van de klant. Gelet op de nieuwe geluidsnormen, van kracht op 01/01/2013, moet de "]
[null,"klant de DJ of elke andere persoon of toestel dat  geluid produceert verplichten zich aan deze normen te houden. "]
[null,"De toelating voor onze zaal is – maximaal geluidsniveau > 85 dB(A) LAeq,15min en ≤ 95 dB(A) LAeq,15min. "]
[null,"Dit is ruim voldoende. Alle boetes ten gevolge een overschrijding van deze voorwaarde zijn ten laste van de "]
[null,"klant. Er wordt een professionele houding van elke DJ of geluidstechnicus verwacht."]
[]
[null,"5) Alle door de klant meegebrachte materiaal dient door de klant te worden verzekerd en direct na het beëindigen"]
[null,"van de manifestatie te worden verwijderd uit de zaal. Het Katelijnenhof behoudt het recht de leverancier te "]
[null,"aanvaarden en voorschriften te geven om de lokalen ongeschonden te behouden. Het is strikt verboden om "]
[null,"versieringen aan de muren of plafonds te bevestigen met duimspijkers of kleefband ! Bij beschadigingen van "]
[null,"een deel van de muur wordt het geheel als beschadigd beschouwd."]
[]
[null,"6) Het gebruik van de zaal is strikt beperkt tot de in deze overeenkomst vastgestelde functie. "]
[null,"Iedere wijziging in de voorheen verklaarde bestemming brengt automatisch het recht tot prijsherziening met zich mee."]
[]
[null,"7) Het gebruik van de zaal is gratis van zodra het verbruik hoger ligt dan € ",null,null,null,null,null,null,null,{"$f":"matrixen!E4","v":950}]
[null,{"$f":"\"Indien het verbruik lager ligt dan wordt het factuurbedrag opgetrokken tot € \" & J44","v":"Indien het verbruik lager ligt dan wordt het factuurbedrag opgetrokken tot € 950"}]
[null,"Indien uw feest cash (max € 3000) betaald wordt op de dag zelf dan krijgt u een korting van 2 % "]
[null,"op de gehele factuur. Voor traiteurdienst gelden andere kortingsregels."]
[]
[null,"8) Op vrijdag-, zaterdag- en (in geval van een avondfeest) op zondagnacht sluit de zaal, "]
[null,"overeenkomstig het politiereglement, om 03 uur. "]
[null,"Indien de klant dit wenst kan een afwijking bekomen worden op dit reglement mits het betalen van € ",null,null,null,null,null,null,null,null,null,null,{"$f":"J44/10","v":95}]
[null,"(btw incl.) per uur. De klant heeft tijd tot 02u30 om te beslissen of hij van deze afwijking wenst gebruik te "]
[null,"maken of niet. Indien de klant akkoord gaat deze toeslag  te betalen zal het Katelijnenhof  onmiddellijk een "]
[null,"aanvraag doen bij de lokale politie. In het andere geval worden vanaf 02u45 geen dranken meer bediend en"]
[null,"sluiten om 03u00 de deuren. Voor de andere dagen gelden andere tarieven."]
[null,"Op een zaterdag - en zondagmiddagfeest sluit de zaal om 18u30. Indien u wenst langer te blijven wordt per "]
[null,"begonnen uur eveneens een toeslag van € ",null,null,null,null,{"$f":"M51","v":95}]
[null,"(btw incl.) aangerekend."]
[null,"9) De klant is verantwoordelijk voor de goede orde in en rond de feestzaal. Schade veroorzaakt door een der "]
[null,"aanwezigen kan verhaald worden op deze persoon maar als deze om gelijk welke reden de schade niet kan "]
[null,"vergoeden (vb: te weinig financiële middelen of de veroorzaker is onbekend) kan deze schade eveneens "]
[null,"ondeelbaar worden verhaald op de klant , zijnde de persoon die het feest heeft besteld. VB: per gebroken tulpje "]
[null,"aan de lusters van de grote zaal wordt 25 euro aangerekend."]

{"sheet":"Reservatievoorstel","index":3,"n_rows":50,"n_cols":18,"rows_kept":50,"cut":false,"hidden":false,"merged":[[41,0,43,8],[2,14,3,14],[2,15,3,15],[2,16,3,16],[16,9,16,17],[23,14,23,17],[2,17,3,17],[9,12,9,13],[12,9,12,11],[12,12,12,16],[14,9,14,17],[25,9,26,17],[39,0,40,8]]}
[null,null,"Reservatievoorstel",null,null,null,null,null,null,null,"Uitsplitsing per BTW tarief.",null,null,null,null,"Totaalprijs per vol:",{"$f":"E9","v":0}]
["Naam Klant:",null,{"$f":"'menu''s'!F110","v":0},null,null,null,"Katelijnenhof",null,null,null,null,null,null,null,null,{"$f":"IF(Q2>0,\"Prijs drankforfait na de maaltijd, volledig aan 21% BTW:\",\"\")","v":""},{"$f":"'menu''s'!D95","v":0}]
["Adres:",null,{"$f":"'menu''s'!F111","v":0},null,null,null,"Heirweg 172",null,null,null,null,null,"Menu",null,"Dep. B",{"$f":"IF(Q2>0,\"Drank- forfait:\",\"\")","v":""},"Totaal aan 21%","Dep. A"]
["Stad:",null,{"$f":"'menu''s'!F112","v":0},null,null,null,"8800 Roeselare",null,null,null,"aantal","totaal:","deel 12%","deel21%"]
["Tel nr:",null,{"$f":"'menu''s'!F113","v":0},null,null,null,"info@katelijnenhof.be",null,null,"Vol",{"$f":"D9","v":0},{"$f":"Q1-Q2","v":0},{"$f":"ROUND(L5*0.65,2)","v":0},{"$f":"L5-M5","v":0},{"$f":"K5*M5","v":0},{"$f":"Q2","v":0},{"$f":"N5+P5","v":0},{"$f":"K5*Q5","v":0}]
[{"$f":"'menu''s'!E134","v":"Reden feest:"},{"$f":"'menu''s'!F134","v":0},null,null,null,null,"Gsm 0475/618058",null,null,"JR 1/2",{"$f":"D10","v":0},{"$f":"L5/2","v":0},{"$f":"ROUND(L6*0.65,2)","v":0},{"$f":"L6-M6","v":0},{"$f":"K6*M6","v":0},{"$f":"ROUND(Q2/2,2)","v":0},{"$f":"N6+P6","v":0},{"$f":"K6*Q6","v":0}]
["Datum activiteit:",null,{"$f":"'menu''s'!F101","v":"00:00:00"},null,"email klant:",{"$f":"'menu''s'!F114","v":0},null,null,null,"JR 1/3",{"$f":"D11","v":0},{"$f":"L5/3","v":0},0,0,0,{"$f":"ROUND(Q2/3,2)","v":0},{"$f":"N7+P7","v":0},0]
["Totaal aantal personen:",null,null,{"$f":"D9+D10+D11+D12","v":0},"prijs:",null,"aankomst om:",{"$f":"'menu''s'!F108","v":0},null,"JR gratis",{"$f":"D12","v":0},{"$f":"E12","v":"0,00"},{"$f":"L8*0.65","v":0},{"$f":"L8*0.35","v":0},0,null,{"$f":"N8+P8","v":0},0]
[null,null,"volwassenen:",{"$f":"'menu''s'!F103","v":0},{"$f":"'menu''s'!D7","v":0},null,"aan tafel om:",{"$f":"'menu''s'!F109","v":0},null,null,null,"Voorschot reeds betaald:",null,"waarde:",{"$f":"ROUND(M9/98*100,2)","v":0},{"$f":"IF(Q9>0,\"Huur zaal/muziekinstallatie: \",\"\")","v":""},{"$f":"H13","v":0}]
[null,null,"JR 1/2 (6 t.e.m. 11) :",{"$f":"'menu''s'!F104","v":0},{"$f":"'menu''s'!J7","v":0},null,null,null,null,null,null,"Gestort / betaald op:"]
[null,null,"JR 1/3 (3 t.e.m. 5) :",{"$f":"'menu''s'!F105","v":0},{"$f":"'menu''s'!H7","v":0},null,"raming totaal 1:",{"$f":"D9*E9+D10*E10+D11*E11+D12*E12","v":0},null,null,null,{"$f":"IF(O9>0,\"Voorschot uitgesplitst:\",\"\")","v":""},{"$f":"IF(O9>0,\" € \"&ROUND(O9*0.65,2) & \" x 12% => Dep. B  en € \" & ROUND(O9*0.35,2) & \" x 21% => Dep. A.\",\"\")","v":""}]
[null,null,"JR gratis (0 t.e.m. 2) :",{"$f":"'menu''s'!F106","v":0},{"$f":"'menu''s'!F7","v":"0,00"},null,"ander rekenblad:",{"$f":"'menu''s'!F115","v":0},null,null,null,null,"Voorschot wordt gesplitst over:",{"$f":"IF(O9>0,ROUNDUP((O9+1)/L5,0),0)","v":0}," volwassenen"]
[null,null,null,null,null,null,"huur zaal:",{"$f":"IF(D8=0,0,IF((H11+H12)<'Algemene verkoopsvoorwaarden'!J44,('Algemene verkoopsvoorwaarden'!J44-Reservatievoorstel!H11-Reservatievoorstel!H12),0))","v":0},null,"Input GKS:",null,null,{"$f":"IF(O9*0.65 >N12*M5,\"ONMOGELIJK U bekomt negatieve waarden.\",\"\")","v":""}]
[null,null,null,null,null,null,"raming algemeen totaal:",{"$f":"H11+H12+H13","v":0},null,{"$f":"N12","v":0},"vol","x",{"$f":"IFERROR(ROUND(M5-O9*0.65/N12,2),\"\")","v":""},0.12,{"$f":"IFERROR(J14*M14,\"\")","v":""},"Dep. B","Verwerking voorschot"]
[null,null,null,null,null,null,"raming te betalen indien contante betaling  (max € 3000 cash):",{"$f":"'menu''s'!F122","v":0},null,{"$f":"IFERROR( \" Er wordt € \" & ROUND(O9*0.65/N12,2) & \" minder geboekt bij \" & N12 & \" personen omdat dit reeds als voorschot werd geboekt.\",\"\")","v":""}]
[null,null,null,null,"Voorkeur tafelschikking:",{"$f":"'menu''s'!L124","v":"geen voorkeur"},null,null,null,{"$f":"N12","v":0},"vol","x",{"$f":"IFERROR(ROUND(Q5-O9*0.35/N12,2),\"\")","v":""},0.21,{"$f":"IFERROR(J16*M16,\"\")","v":""},"Dep. A","Verwerking voorschot"]
[null,null,null,null,null,{"$f":"'menu''s'!B20","v":"De gast die een extra aperitief bestelt betaalt deze zelf"},null,null,null,{"$f":"IFERROR( \" Er wordt € \" & ROUND(O9*0.35/N12,2) & \" minder geboekt bij \" & N12 & \" personen omdat dit reeds als voorschot werd geboekt.\",\"\")","v":""}]
[{"$f":"'menu''s'!H102","v":""},null,null,null,null,null,null,null,{"$f":"IF(O9>0,\" Uw voorschot van € \" & O9 & \" wordt nog in mindering gebracht\",\"\")","v":""},{"$f":"K5-J14","v":0},{"$f":"K14","v":"vol"},"x",{"$f":"M5","v":0},0.12,{"$f":"J18*M18","v":0},"Dep. B"]
[{"$f":"'menu''s'!H103","v":""},null,null,null,null,null,null,null,{"$f":"IF(A31=\"\",\"Dit voorstel is voorlopig ongeldig, u moet nog een hoofdschotel selecteren\",\"\")","v":"Dit voorstel is voorlopig ongeldig, u moet nog een hoofdschotel selecteren"},{"$f":"K5-J16","v":0},{"$f":"K16","v":"vol"},"x",{"$f":"Q5","v":0},0.21,0,"Dep. A"]
[{"$f":"'menu''s'!H104","v":""},null,null,null,null,null,null,null,null,{"$f":"K6","v":0},{"$f":"J6","v":"JR 1/2"},"x",{"$f":"M6","v":0},0.12,0,"Dep. B"]
[{"$f":"'menu''s'!H105","v":""},null,null,null,null,null,null,null,null,{"$f":"K6","v":0},{"$f":"J6","v":"JR 1/2"},"x",{"$f":"Q6","v":0},0.21,0,"Dep. A"]
[{"$f":"'menu''s'!H106","v":""},null,null,null,null,null,null,null,null,{"$f":"K7","v":0},{"$f":"J7","v":"JR 1/3"},"x",{"$f":"M7","v":0},0.12,0,"Dep. B"]
[{"$f":"'menu''s'!H107","v":""},null,null,null,null,null,null,null,null,{"$f":"K7","v":0},{"$f":"J7","v":"JR 1/3"},"x",{"$f":"Q7","v":0},0.21,0,"Dep. A"]
[{"$f":"'menu''s'!H108","v":""},null,null,null,null,null,null,null,null,{"$f":"IF(L24>0,\"1\",0)","v":0},{"$f":"IF(L24>0,\"x\",\"\")","v":""},{"$f":"Q9","v":0},{"$f":"IF(L24>0,\"21%\",\"\")","v":""},{"$f":"IF(L24>0,\"Dep. A\",\"\")","v":""},{"$f":"P9","v":""}]
[{"$f":"'menu''s'!H109","v":""},null,null,null,null,null,null,null,null,null,"Totale boekwaarde:",{"$f":"SUM(O14:O23)+L24+O9+H12","v":0},{"$f":"IF(SUM(O14:O23)+L24+O9+H12 <>H14,\" Er is iets fout met de splitsingstabel\",\"\")","v":""}]
[{"$f":"'menu''s'!H110","v":""},null,null,null,null,null,null,null,null,{"$f":"\"De eventuele korting contant van 2 %, in het huidig voorstel is dit € \" & ROUND(H14-H15,2) & \" is nog niet in bovenstaande splitsing verwerkt.\"","v":"De eventuele korting contant van 2 %, in het huidig voorstel is dit € 0 is nog niet in bovenstaande splitsing verwerkt."}]
[{"$f":"'menu''s'!H111","v":""}]
[{"$f":"'menu''s'!H112","v":""},null,null,null,null,null,null,null,null,{"$f":"IF(M28<>\"\",\"Detail van het aperitief:\",\"\")","v":""},null,null,{"$f":"A18","v":""}]
[{"$f":"'menu''s'!H113","v":""}]
[{"$f":"'menu''s'!H114","v":""},null,null,null,null,null,null,null,null,{"$f":"'menu''s'!H13","v":0}]
[{"$f":"'menu''s'!H115","v":""},null,null,null,null,null,null,null,null,{"$f":"'menu''s'!H14","v":0}]
[{"$f":"'menu''s'!H116","v":""},null,{"$f":"'menu''s'!J116","v":""},null,null,null,null,null,null,{"$f":"'menu''s'!H15","v":0}]
[{"$f":"'menu''s'!H117","v":""},null,null,null,{"$f":"'menu''s'!L117","v":""},null,null,null,null,{"$f":"'menu''s'!H16","v":0}]
[{"$f":"'menu''s'!H118","v":""},null,null,null,{"$f":"'menu''s'!L118","v":""},null,null,null,null,{"$f":"'menu''s'!H17","v":0}]
[{"$f":"'menu''s'!H119","v":""},null,null,null,null,null,null,null,null,{"$f":"'menu''s'!H18","v":0}]
[{"$f":"'menu''s'!H120","v":""},null,null,null,null,null,null,null,{"$f":"'menu''s'!H121","v":""},{"$f":"'menu''s'!H19","v":0}]
[{"$f":"'menu''s'!B95","v":"Alle drank na de maaltijd komt op één rekening en wordt door de organisator van het feest betaald"},null,null,null,null,null,null,null,null,{"$f":"'menu''s'!H20","v":0}]
[null,{"$f":"'menu''s'!F97","v":"Feest met discobar: "},{"$f":"'menu''s'!G97","v":"nee"},null,{"$f":"'menu''s'!J95","v":"Halal bereidingen: "},{"$f":"'menu''s'!K95","v":"nee"},null,{"$f":"'menu''s'!F95","v":"Vegetariërs: "},{"$f":"'menu''s'!G95","v":"nee"},{"$f":"'menu''s'!H21","v":0}]
["Factuur: ",{"$f":"'menu''s'!N126","v":"nee"},null,null,{"$f":"'menu''s'!H97","v":"Allergenen: "},{"$f":"'menu''s'!I97","v":"nee"},null,{"$f":"'menu''s'!H95","v":"Speciale dieten: "},{"$f":"'menu''s'!I95","v":"nee"},{"$f":"'menu''s'!H22","v":0}]
[{"$f":"'menu''s'!L125","v":"Betaling op de dag zelf (cash of bancontact), u bekomt 2% korting op het totaal"},null,null,null,null,null,null,null,null,{"$f":"'menu''s'!H23","v":0}]
[null,null,null,null,null,null,null,null,null,{"$f":"'menu''s'!H24","v":0}]
[{"$f":"\"Opmerking: \" &'menu''s'!F135","v":"Opmerking: "},null,null,null,null,null,null,null,null,{"$f":"'menu''s'!H25","v":0}]
[null,null,null,null,null,null,null,null,null,{"$f":"'menu''s'!H26","v":0}]
[null,null,null,null,null,null,null,null,null,{"$f":"IF(A36<>\"\",\"Detail van het dessert:\",\"\")","v":""}]
["Het juiste aantal EN de gewenste tafelschikking moet ons meegedeeld worden ten laatste op: ",null,null,null,null,null,null,null,{"$f":"C7-9","v":-9},{"$f":"'menu''s'!F86","v":0}]
["Wijzigingen na deze datum van aantal en/of tafelschikking hebben prijsherzieningen tot gevolg!",null,null,null,null,null,null,null,null,{"$f":"'menu''s'!F87","v":0}]
["Dit aantal geldt als minimum voor facturatie. Verdere verkoopsvoorwaarden op een ander werkblad. ",null,null,null,null,null,null,null,null,{"$f":"'menu''s'!F88","v":0}]
["Vergeet ze niet te lezen.",null,null,null,null,null,null,{"$f":"'menu''s'!K123","v":"Gaat u akkoord met de algemene verkoopsvoorwaarden?"},{"$f":"'menu''s'!L123","v":"ja"},{"$f":"'menu''s'!F89","v":0}]
["Handtekening der beide partijen voor akkoord:",null,null,null,null,null,null,null,null,{"$f":"'menu''s'!F90","v":0}]
[null,null,"De klant",null,null,null,null,"Het Katelijnenhof",null,{"$f":"'menu''s'!F91","v":0}]